Department family,Entity,Date,Expense type,Expense area,Supplier,Transaction number,Amount,VAT registration number,,
Department for Science Innovation & Technology,Intellectual Property Office,Department for Business Energy and Industrial Strategy,Intellectual Property Office,26/03/2024,Staff Costs,DDaT Directorate,Acorn Recruitment Ltd,1047938,8695.44,Not Applicable
Department for Science Innovation & Technology,Intellectual Property Office,Department for Business Energy and Industrial Strategy,Intellectual Property Office,06/03/2024,Pay Costs,PDTM Directorate,Acorn Recruitment Ltd,1048282,828.95,Not Applicable
Department for Science Innovation & Technology,Intellectual Property Office,Department for Business Energy and Industrial Strategy,Intellectual Property Office,06/03/2024,Pay Costs,PDTM Directorate,Acorn Recruitment Ltd,1048283,793.43,Not Applicable
Department for Science Innovation & Technology,Intellectual Property Office,Department for Business Energy and Industrial Strategy,Intellectual Property Office,11/03/2024,Pay Costs,PDTM Directorate,Acorn Recruitment Ltd,1048757,828.95,Not Applicable
Department for Science Innovation & Technology,Intellectual Property Office,Department for Business Energy and Industrial Strategy,Intellectual Property Office,06/03/2024,Information Technology,DDaT Directorate,Personal expenses,UK538,17278.8,Not Applicable
Department for Science Innovation & Technology,Intellectual Property Office,Department for Business Energy and Industrial Strategy,Intellectual Property Office,26/03/2024,Staff Costs,"Rights, Policy & Enforcement Directorate",Cabinet Office,3839604,27000,Not Applicable
Department for Science Innovation & Technology,Intellectual Property Office,Department for Business Energy and Industrial Strategy,Intellectual Property Office,08/03/2024,Information Technology,"Rights, Policy & Enforcement Directorate",Capital Law LLP,70014984,2566.8,Not Applicable
Department for Science Innovation & Technology,Intellectual Property Office,Department for Business Energy and Industrial Strategy,Intellectual Property Office,12/03/2024,Supporting UK Business,PDTM Directorate,Dehns,569929,2500,Not Applicable
Department for Science Innovation & Technology,Intellectual Property Office,Department for Business Energy and Industrial Strategy,Intellectual Property Office,08/03/2024,Postage & Delivery Costs,"Rights, Policy & Enforcement Directorate",DHL International (UK) Ltd,BRSR008143017,3641.06,Not Applicable
Department for Science Innovation & Technology,Intellectual Property Office,Department for Business Energy and Industrial Strategy,Intellectual Property Office,15/03/2024,Postage & Delivery Costs,"Rights, Policy & Enforcement Directorate",DHL International (UK) Ltd,BRSR008157776,699.62,Not Applicable
Department for Science Innovation & Technology,Intellectual Property Office,Department for Business Energy and Industrial Strategy,Intellectual Property Office,22/03/2024,Postage & Delivery Costs,"Rights, Policy & Enforcement Directorate",DHL International (UK) Ltd,BRSR008180398,2949.76,Not Applicable
Department for Science Innovation & Technology,Intellectual Property Office,Department for Business Energy and Industrial Strategy,Intellectual Property Office,27/03/2024,Postage & Delivery Costs,"Rights, Policy & Enforcement Directorate",DHL International (UK) Ltd,BRSR008202864,2598.2,Not Applicable
Department for Science Innovation & Technology,Intellectual Property Office,Department for Business Energy and Industrial Strategy,Intellectual Property Office,08/03/2024,Accommodation,"Rights, Policy & Enforcement Directorate",Dwr Cymru Cyf,4064201225,816.45,Not Applicable
Department for Science Innovation & Technology,Intellectual Property Office,Department for Business Energy and Industrial Strategy,Intellectual Property Office,26/03/2024,Supporting UK Business,PDTM Directorate,Elkington & Fife  LLP,116810,2500,Not Applicable
Department for Science Innovation & Technology,Intellectual Property Office,Department for Business Energy and Industrial Strategy,Intellectual Property Office,06/03/2024,Accommodation,"Rights, Policy & Enforcement Directorate",Pro Investments Limited,206864,24750,Not Applicable
Department for Science Innovation & Technology,Intellectual Property Office,Department for Business Energy and Industrial Strategy,Intellectual Property Office,06/03/2024,Accommodation,"Rights, Policy & Enforcement Directorate",Pro Investments Limited,206865,2246.18,Not Applicable
Department for Science Innovation & Technology,Intellectual Property Office,Department for Business Energy and Industrial Strategy,Intellectual Property Office,26/03/2024,Accommodation,"Rights, Policy & Enforcement Directorate",Pro Investments Limited,208325,594,Not Applicable
Department for Science Innovation & Technology,Intellectual Property Office,Department for Business Energy and Industrial Strategy,Intellectual Property Office,08/03/2024,Pay Costs,DDaT Directorate,Hays Specialist Recruitment,1013468887,4485.54,Not Applicable
Department for Science Innovation & Technology,Intellectual Property Office,Department for Business Energy and Industrial Strategy,Intellectual Property Office,08/03/2024,Pay Costs,DDaT Directorate,Hays Specialist Recruitment,1013478444,4485.54,Not Applicable
Department for Science Innovation & Technology,Intellectual Property Office,Department for Business Energy and Industrial Strategy,Intellectual Property Office,08/03/2024,Pay Costs,DDaT Directorate,Hays Specialist Recruitment,1013490642,4485.54,Not Applicable
Department for Science Innovation & Technology,Intellectual Property Office,Department for Business Energy and Industrial Strategy,Intellectual Property Office,15/03/2024,Pay Costs,DDaT Directorate,Hays Specialist Recruitment,1013503937,4485.54,Not Applicable
Department for Science Innovation & Technology,Intellectual Property Office,Department for Business Energy and Industrial Strategy,Intellectual Property Office,26/03/2024,Pay Costs,DDaT Directorate,Hays Specialist Recruitment,1013523390,4485.54,Not Applicable
Department for Science Innovation & Technology,Intellectual Property Office,Department for Business Energy and Industrial Strategy,Intellectual Property Office,01/03/2024,Legal & Hearings,PDTM Directorate,Marten Walsh Cherer Ltd,131723,2106.04,Not Applicable
Department for Science Innovation & Technology,Intellectual Property Office,Department for Business Energy and Industrial Strategy,Intellectual Property Office,01/03/2024,Information Technology,DDaT Directorate,Phoenix Software Ltd,OP/C035024,-5735.04,Not Applicable
Department for Science Innovation & Technology,Intellectual Property Office,Department for Business Energy and Industrial Strategy,Intellectual Property Office,27/03/2024,Information Technology,DDaT Directorate,Phoenix Software Ltd,OP/I002178,273141.19,Not Applicable
Department for Science Innovation & Technology,Intellectual Property Office,Department for Business Energy and Industrial Strategy,Intellectual Property Office,01/03/2024,Information Technology,DDaT Directorate,Phoenix Software Ltd,OP/I999348,17817.6,Not Applicable
Department for Science Innovation & Technology,Intellectual Property Office,Department for Business Energy and Industrial Strategy,Intellectual Property Office,01/03/2024,Supporting UK Business,PDTM Directorate,Potter Clarkson LLP,1046621,2500,Not Applicable
Department for Science Innovation & Technology,Intellectual Property Office,Department for Business Energy and Industrial Strategy,Intellectual Property Office,08/03/2024,Supporting UK Business,PDTM Directorate,Potter Clarkson LLP,1046658,2500,Not Applicable
Department for Science Innovation & Technology,Intellectual Property Office,Department for Business Energy and Industrial Strategy,Intellectual Property Office,28/03/2024,Supporting UK Business,PDTM Directorate,Potter Clarkson LLP,1048010,2500,Not Applicable
Department for Science Innovation & Technology,Intellectual Property Office,Department for Business Energy and Industrial Strategy,Intellectual Property Office,06/03/2024,Postage & Delivery Costs,"Rights, Policy & Enforcement Directorate",Royal Mail,9069792923,3755.1,Not Applicable
Department for Science Innovation & Technology,Intellectual Property Office,Department for Business Energy and Industrial Strategy,Intellectual Property Office,08/03/2024,Postage & Delivery Costs,"Rights, Policy & Enforcement Directorate",Royal Mail,9069847275,4868.74,Not Applicable
Department for Science Innovation & Technology,Intellectual Property Office,Department for Business Energy and Industrial Strategy,Intellectual Property Office,15/03/2024,Postage & Delivery Costs,"Rights, Policy & Enforcement Directorate",Royal Mail,9069904538,3141.91,Not Applicable
Department for Science Innovation & Technology,Intellectual Property Office,Department for Business Energy and Industrial Strategy,Intellectual Property Office,27/03/2024,Postage & Delivery Costs,"Rights, Policy & Enforcement Directorate",Royal Mail,9069957409,3410.79,Not Applicable
Department for Science Innovation & Technology,Intellectual Property Office,Department for Business Energy and Industrial Strategy,Intellectual Property Office,28/03/2024,Postage & Delivery Costs,"Rights, Policy & Enforcement Directorate",Royal Mail,9070017302,4035.1,Not Applicable
Department for Science Innovation & Technology,Intellectual Property Office,Department for Business Energy and Industrial Strategy,Intellectual Property Office,15/03/2024,Accommodation,"Rights, Policy & Enforcement Directorate",Senator International Ltd,R00097771,12177.6,Not Applicable
Department for Science Innovation & Technology,Intellectual Property Office,Department for Business Energy and Industrial Strategy,Intellectual Property Office,13/03/2024,Accommodation,"Rights, Policy & Enforcement Directorate",Senator International Ltd,S01826508,1098.62,Not Applicable
Department for Science Innovation & Technology,Intellectual Property Office,Department for Business Energy and Industrial Strategy,Intellectual Property Office,13/03/2024,Accommodation,"Rights, Policy & Enforcement Directorate",Senator International Ltd,S01826509,19922.33,Not Applicable
Department for Science Innovation & Technology,Intellectual Property Office,Department for Business Energy and Industrial Strategy,Intellectual Property Office,06/03/2024,Information Technology,DDaT Directorate,Specialist Computer Centres Plc,OP/N513152,8635,Not Applicable
Department for Science Innovation & Technology,Intellectual Property Office,Department for Business Energy and Industrial Strategy,Intellectual Property Office,08/03/2024,Information Technology,DDaT Directorate,Specialist Computer Centres Plc,OP/N541156,3318.89,Not Applicable
Department for Science Innovation & Technology,Intellectual Property Office,Department for Business Energy and Industrial Strategy,Intellectual Property Office,08/03/2024,Information Technology,DDaT Directorate,Specialist Computer Centres Plc,OP/N541157,8635,Not Applicable
Department for Science Innovation & Technology,Intellectual Property Office,Department for Business Energy and Industrial Strategy,Intellectual Property Office,25/03/2024,Information Technology,DDaT Directorate,Specialist Computer Centres Plc,OP/N545297,76900.56,Not Applicable
Department for Science Innovation & Technology,Intellectual Property Office,Department for Business Energy and Industrial Strategy,Intellectual Property Office,22/03/2024,Office Machinery,"Rights, Policy & Enforcement Directorate",Total Print Finishing Services Ltd,43272,714,Not Applicable
Department for Science Innovation & Technology,Intellectual Property Office,Department for Business Energy and Industrial Strategy,Intellectual Property Office,15/03/2024,Accommodation,"Rights, Policy & Enforcement Directorate",Wastesavers Ltd,22884,535.91,Not Applicable
Department for Science Innovation & Technology,Intellectual Property Office,Department for Business Energy and Industrial Strategy,Intellectual Property Office,12/03/2024,Office Supplies,"Rights, Policy & Enforcement Directorate",Antalis UK Ltd,6700426377,2806.18,Not Applicable
Department for Science Innovation & Technology,Intellectual Property Office,Department for Business Energy and Industrial Strategy,Intellectual Property Office,26/03/2024,Supporting UK Business,PDTM Directorate,Swindell & Pearson Ltd,SIN130970,2500,Not Applicable
Department for Science Innovation & Technology,Intellectual Property Office,Department for Business Energy and Industrial Strategy,Intellectual Property Office,01/03/2024,Supporting UK Business,PDTM Directorate,Venner Shipley  LLP,476919,2499.6,Not Applicable
Department for Science Innovation & Technology,Intellectual Property Office,Department for Business Energy and Industrial Strategy,Intellectual Property Office,12/03/2024,Supporting UK Business,PDTM Directorate,Venner Shipley  LLP,478872,2500,Not Applicable
Department for Science Innovation & Technology,Intellectual Property Office,Department for Business Energy and Industrial Strategy,Intellectual Property Office,06/03/2024,Telecoms,DDaT Directorate,Vodafone Corporate Ltd,105526101,2350.48,Not Applicable
Department for Science Innovation & Technology,Intellectual Property Office,Department for Business Energy and Industrial Strategy,Intellectual Property Office,26/03/2024,Supporting UK Business,Business & International Policy Directorate,Foreign & Commonwealth and Development O,20012377,-3073.2,Not Applicable
Department for Science Innovation & Technology,Intellectual Property Office,Department for Business Energy and Industrial Strategy,Intellectual Property Office,26/03/2024,Supporting UK Business,Business & International Policy Directorate,Foreign & Commonwealth and Development O,20012885,72260.79,Not Applicable
Department for Science Innovation & Technology,Intellectual Property Office,Department for Business Energy and Industrial Strategy,Intellectual Property Office,26/03/2024,Supporting UK Business,Business & International Policy Directorate,Foreign & Commonwealth and Development O,20013192,72436.64,Not Applicable
Department for Science Innovation & Technology,Intellectual Property Office,Department for Business Energy and Industrial Strategy,Intellectual Property Office,26/03/2024,Supporting UK Business,Business & International Policy Directorate,Foreign & Commonwealth and Development O,20013325,-1125.87,Not Applicable
Department for Science Innovation & Technology,Intellectual Property Office,Department for Business Energy and Industrial Strategy,Intellectual Property Office,26/03/2024,Supporting UK Business,Business & International Policy Directorate,Foreign & Commonwealth and Development O,20013767,29745.27,Not Applicable
Department for Science Innovation & Technology,Intellectual Property Office,Department for Business Energy and Industrial Strategy,Intellectual Property Office,15/03/2024,Supporting UK Business,Business & International Policy Directorate,Foreign & Commonwealth and Development O,20014105,33377.4,Not Applicable
Department for Science Innovation & Technology,Intellectual Property Office,Department for Business Energy and Industrial Strategy,Intellectual Property Office,15/03/2024,Supporting UK Business,Business & International Policy Directorate,Foreign & Commonwealth and Development O,20014274,39902.45,Not Applicable
Department for Science Innovation & Technology,Intellectual Property Office,Department for Business Energy and Industrial Strategy,Intellectual Property Office,15/03/2024,Supporting UK Business,Business & International Policy Directorate,Foreign & Commonwealth and Development O,20014398,5786.8,Not Applicable
Department for Science Innovation & Technology,Intellectual Property Office,Department for Business Energy and Industrial Strategy,Intellectual Property Office,26/03/2024,Supporting UK Business,Business & International Policy Directorate,Foreign & Commonwealth and Development O,20014727,-3587.54,Not Applicable
Department for Science Innovation & Technology,Intellectual Property Office,Department for Business Energy and Industrial Strategy,Intellectual Property Office,15/03/2024,Supporting UK Business,Business & International Policy Directorate,Foreign & Commonwealth and Development O,20014838,2688,Not Applicable
Department for Science Innovation & Technology,Intellectual Property Office,Department for Business Energy and Industrial Strategy,Intellectual Property Office,15/03/2024,Supporting UK Business,Business & International Policy Directorate,Foreign & Commonwealth and Development O,20014861,10625.82,Not Applicable
Department for Science Innovation & Technology,Intellectual Property Office,Department for Business Energy and Industrial Strategy,Intellectual Property Office,26/03/2024,Supporting UK Business,Business & International Policy Directorate,Foreign & Commonwealth and Development O,20015262,9668.7,Not Applicable
Department for Science Innovation & Technology,Intellectual Property Office,Department for Business Energy and Industrial Strategy,Intellectual Property Office,01/03/2024,Computer Contracts,Strategy Directorate,HM TREASURY,46292,31800,Not Applicable
Department for Science Innovation & Technology,Intellectual Property Office,Department for Business Energy and Industrial Strategy,Intellectual Property Office,05/03/2024,Staff Costs,Strategy Directorate,HM TREASURY,46346,4035.98,Not Applicable
Department for Science Innovation & Technology,Intellectual Property Office,Department for Business Energy and Industrial Strategy,Intellectual Property Office,22/03/2024,Misc Expenses Finance,Finance Directorate,NATIONAL AUDIT OFFICE,SIN004110,42988,Not Applicable
Department for Science Innovation & Technology,Intellectual Property Office,Department for Business Energy and Industrial Strategy,Intellectual Property Office,06/03/2024,Postage & Delivery Costs,"Rights, Policy & Enforcement Directorate",RICO LOGISTICS LTD,SINRLLFS00456901,1421.03,Not Applicable
Department for Science Innovation & Technology,Intellectual Property Office,Department for Business Energy and Industrial Strategy,Intellectual Property Office,06/03/2024,Postage & Delivery Costs,"Rights, Policy & Enforcement Directorate",RICO LOGISTICS LTD,SINRLLFS00457834,612.01,Not Applicable
Department for Science Innovation & Technology,Intellectual Property Office,Department for Business Energy and Industrial Strategy,Intellectual Property Office,20/03/2024,Postage & Delivery Costs,"Rights, Policy & Enforcement Directorate",RICO LOGISTICS LTD,SINRLLFS00458395,1193.76,Not Applicable
Department for Science Innovation & Technology,Intellectual Property Office,Department for Business Energy and Industrial Strategy,Intellectual Property Office,19/03/2024,Postage & Delivery Costs,"Rights, Policy & Enforcement Directorate",RICO LOGISTICS LTD,SINRLLFS00459275,1423.78,Not Applicable
Department for Science Innovation & Technology,Intellectual Property Office,Department for Business Energy and Industrial Strategy,Intellectual Property Office,28/03/2024,Telecoms,DDaT Directorate,VIRGIN MEDIA,908251-175,1562.1,Not Applicable
Department for Science Innovation & Technology,Intellectual Property Office,Department for Business Energy and Industrial Strategy,Intellectual Property Office,20/03/2024,Telecoms,DDaT Directorate,VIRGIN MEDIA,908251-MAR24,22320,Not Applicable
Department for Science Innovation & Technology,Intellectual Property Office,Department for Business Energy and Industrial Strategy,Intellectual Property Office,01/03/2024,Information Technology,DDaT Directorate,Open Connections Solutions Limited,350004,15202,Not Applicable
Department for Science Innovation & Technology,Intellectual Property Office,Department for Business Energy and Industrial Strategy,Intellectual Property Office,04/03/2024,Supporting UK Business,PDTM Directorate,LAWRIE INTELLECTUAL PROPERTY,128243,2500,Not Applicable
Department for Science Innovation & Technology,Intellectual Property Office,Department for Business Energy and Industrial Strategy,Intellectual Property Office,08/03/2024,Supporting UK Business,PDTM Directorate,LAWRIE INTELLECTUAL PROPERTY,128250,2500,Not Applicable
Department for Science Innovation & Technology,Intellectual Property Office,Department for Business Energy and Industrial Strategy,Intellectual Property Office,15/03/2024,Supporting UK Business,PDTM Directorate,LAWRIE INTELLECTUAL PROPERTY,128346,2500,Not Applicable
Department for Science Innovation & Technology,Intellectual Property Office,Department for Business Energy and Industrial Strategy,Intellectual Property Office,25/03/2024,Supporting UK Business,PDTM Directorate,LAWRIE INTELLECTUAL PROPERTY,128396,2500,Not Applicable
Department for Science Innovation & Technology,Intellectual Property Office,Department for Business Energy and Industrial Strategy,Intellectual Property Office,04/03/2024,Supporting UK Business,Business & International Policy Directorate,INNGOT LTD,V24-2/8,1950,Not Applicable
Department for Science Innovation & Technology,Intellectual Property Office,Department for Business Energy and Industrial Strategy,Intellectual Property Office,26/03/2024,Supporting UK Business,Business & International Policy Directorate,INNGOT LTD,V24-3/4,4800,Not Applicable
Department for Science Innovation & Technology,Intellectual Property Office,Department for Business Energy and Industrial Strategy,Intellectual Property Office,18/03/2024,Information Technology,"Rights, Policy & Enforcement Directorate",Bytes Software Services Ltd,1264316,19155.02,Not Applicable
Department for Science Innovation & Technology,Intellectual Property Office,Department for Business Energy and Industrial Strategy,Intellectual Property Office,08/03/2024,Staff Costs,"Rights, Policy & Enforcement Directorate",Pluxee UK Ltd,3921045,2052.34,Not Applicable
Department for Science Innovation & Technology,Intellectual Property Office,Department for Business Energy and Industrial Strategy,Intellectual Property Office,26/03/2024,Information Technology,DDaT Directorate,EE Ltd,1288023296,760.61,Not Applicable
Department for Science Innovation & Technology,Intellectual Property Office,Department for Business Energy and Industrial Strategy,Intellectual Property Office,26/03/2024,Information Technology,DDaT Directorate,EE Ltd,1288137424,818,Not Applicable
Department for Science Innovation & Technology,Intellectual Property Office,Department for Business Energy and Industrial Strategy,Intellectual Property Office,27/03/2024,Supporting UK Business,PDTM Directorate,Lean IP Ltd,INV2580,2500,Not Applicable
Department for Science Innovation & Technology,Intellectual Property Office,Department for Business Energy and Industrial Strategy,Intellectual Property Office,13/03/2024,Legal & Hearings,PDTM Directorate,Government Legal Department,540095,1848.96,Not Applicable
Department for Science Innovation & Technology,Intellectual Property Office,Department for Business Energy and Industrial Strategy,Intellectual Property Office,22/03/2024,Legal & Hearings,PDTM Directorate,Government Legal Department,540689,1347.48,Not Applicable
Department for Science Innovation & Technology,Intellectual Property Office,Department for Business Energy and Industrial Strategy,Intellectual Property Office,22/03/2024,Legal & Hearings,PDTM Directorate,Government Legal Department,540690,1199.2,Not Applicable
Department for Science Innovation & Technology,Intellectual Property Office,Department for Business Energy and Industrial Strategy,Intellectual Property Office,22/03/2024,Legal & Hearings,PDTM Directorate,Government Legal Department,541227,3852.84,Not Applicable
Department for Science Innovation & Technology,Intellectual Property Office,Department for Business Energy and Industrial Strategy,Intellectual Property Office,22/03/2024,Legal & Hearings,PDTM Directorate,Government Legal Department,541451,7968,Not Applicable
Department for Science Innovation & Technology,Intellectual Property Office,Department for Business Energy and Industrial Strategy,Intellectual Property Office,26/03/2024,Legal & Hearings,PDTM Directorate,Government Legal Department,541488,2245.28,Not Applicable
Department for Science Innovation & Technology,Intellectual Property Office,Department for Business Energy and Industrial Strategy,Intellectual Property Office,05/03/2024,Telecoms,DDaT Directorate,Personal expenses,UK10/032024/8762,2238.11,Not Applicable
Department for Science Innovation & Technology,Intellectual Property Office,Department for Business Energy and Industrial Strategy,Intellectual Property Office,22/03/2024,Supporting UK Business,Business & International Policy Directorate,FCDO Services,70009216,943.8,Not Applicable
Department for Science Innovation & Technology,Intellectual Property Office,Department for Business Energy and Industrial Strategy,Intellectual Property Office,26/03/2024,Supporting UK Business,PDTM Directorate,Wilson Gunn,1008681,2500,Not Applicable
Department for Science Innovation & Technology,Intellectual Property Office,Department for Business Energy and Industrial Strategy,Intellectual Property Office,01/03/2024,Staff Costs,"Rights, Policy & Enforcement Directorate",The Clive Davis Partnership Ltd.,CDSC-3884,1200,Not Applicable
Department for Science Innovation & Technology,Intellectual Property Office,Department for Business Energy and Industrial Strategy,Intellectual Property Office,01/03/2024,Staff Costs,"Rights, Policy & Enforcement Directorate",The Clive Davis Partnership Ltd.,CDSC-3885,1560,Not Applicable
Department for Science Innovation & Technology,Intellectual Property Office,Department for Business Energy and Industrial Strategy,Intellectual Property Office,01/03/2024,Staff Costs,"Rights, Policy & Enforcement Directorate",The Clive Davis Partnership Ltd.,CDSC/3883,2400,Not Applicable
Department for Science Innovation & Technology,Intellectual Property Office,Department for Business Energy and Industrial Strategy,Intellectual Property Office,11/03/2024,Miscellaneous Expenses General,Strategy Directorate,European Patent Office,40312798,1265.27,Not Applicable
Department for Science Innovation & Technology,Intellectual Property Office,Department for Business Energy and Industrial Strategy,Intellectual Property Office,20/03/2024,Information Technology,PDTM Directorate,European Patent Office,40312918,42944.46,Not Applicable
Department for Science Innovation & Technology,Intellectual Property Office,Department for Business Energy and Industrial Strategy,Intellectual Property Office,13/03/2024,Office Supplies,"Rights, Policy & Enforcement Directorate",Insight Health Screening Limited,SIN-04602,1603.2,Not Applicable
Department for Science Innovation & Technology,Intellectual Property Office,Department for Business Energy and Industrial Strategy,Intellectual Property Office,06/03/2024,Miscellaneous Expenses General,"Rights, Policy & Enforcement Directorate",Insight Health Screening Limited,SIN-05458,5094.1,Not Applicable
Department for Science Innovation & Technology,Intellectual Property Office,Department for Business Energy and Industrial Strategy,Intellectual Property Office,18/03/2024,Office Supplies,"Rights, Policy & Enforcement Directorate",Insight Health Screening Limited,SIN-05655,2238.48,Not Applicable
Department for Science Innovation & Technology,Intellectual Property Office,Department for Business Energy and Industrial Strategy,Intellectual Property Office,13/03/2024,Staff Costs,PDTM Directorate,Chartered Institute of Patent Atto,87515,574.01,Not Applicable
Department for Science Innovation & Technology,Intellectual Property Office,Department for Business Energy and Industrial Strategy,Intellectual Property Office,13/03/2024,Accommodation,"Rights, Policy & Enforcement Directorate",Restore Technology Limited,30508,2671.8,Not Applicable
Department for Science Innovation & Technology,Intellectual Property Office,Department for Business Energy and Industrial Strategy,Intellectual Property Office,26/03/2024,Staff Costs,"Rights, Policy & Enforcement Directorate",ASSOCIATION OF CHIEF EXECUTIVES,ACE1628,1500,Not Applicable
Department for Science Innovation & Technology,Intellectual Property Office,Department for Business Energy and Industrial Strategy,Intellectual Property Office,26/03/2024,Marketing & Publicity,Projects,Upper Street Events t/a Immediate Live,102627,3478.8,Not Applicable
Department for Science Innovation & Technology,Intellectual Property Office,Department for Business Energy and Industrial Strategy,Intellectual Property Office,26/03/2024,Supporting UK Business,PDTM Directorate,Abel & Imray,513628,2500,Not Applicable
Department for Science Innovation & Technology,Intellectual Property Office,Department for Business Energy and Industrial Strategy,Intellectual Property Office,08/03/2024,Staff Costs,Strategy Directorate,Digital Accessibility Centre,INV4900,1676.4,Not Applicable
Department for Science Innovation & Technology,Intellectual Property Office,Department for Business Energy and Industrial Strategy,Intellectual Property Office,15/03/2024,Staff Costs,"Rights, Policy & Enforcement Directorate",Ernst & Young LLP,GB01G000503390,3412.08,Not Applicable
Department for Science Innovation & Technology,Intellectual Property Office,Department for Business Energy and Industrial Strategy,Intellectual Property Office,15/03/2024,Staff Costs,"Rights, Policy & Enforcement Directorate",Ernst & Young LLP,GB01G000514519,-3412.08,Not Applicable
Department for Science Innovation & Technology,Intellectual Property Office,Department for Business Energy and Industrial Strategy,Intellectual Property Office,15/03/2024,Staff Costs,"Rights, Policy & Enforcement Directorate",Ernst & Young LLP,GB01G000518722,1421.64,Not Applicable
Department for Science Innovation & Technology,Intellectual Property Office,Department for Business Energy and Industrial Strategy,Intellectual Property Office,08/03/2024,Staff Costs,"Rights, Policy & Enforcement Directorate",Ernst & Young LLP,GB01G000519443,1032,Not Applicable
Department for Science Innovation & Technology,Intellectual Property Office,Department for Business Energy and Industrial Strategy,Intellectual Property Office,15/03/2024,Staff Costs,"Rights, Policy & Enforcement Directorate",Ernst & Young LLP,GB01G000520571,2559.06,Not Applicable
Department for Science Innovation & Technology,Intellectual Property Office,Department for Business Energy and Industrial Strategy,Intellectual Property Office,18/03/2024,Staff Costs,"Rights, Policy & Enforcement Directorate",Ernst & Young LLP,GB01G000521992,882.41,Not Applicable
Department for Science Innovation & Technology,Intellectual Property Office,Department for Business Energy and Industrial Strategy,Intellectual Property Office,27/03/2024,Staff Costs,"Rights, Policy & Enforcement Directorate",Tameside Borough Council,69920383,2000,Not Applicable
Department for Science Innovation & Technology,Intellectual Property Office,Department for Business Energy and Industrial Strategy,Intellectual Property Office,26/03/2024,Staff Costs,Strategy Directorate,KPMG LLP (CSL),5502777316,1316.65,Not Applicable
Department for Science Innovation & Technology,Intellectual Property Office,Department for Business Energy and Industrial Strategy,Intellectual Property Office,19/03/2024,Staff Costs,Strategy Directorate,KPMG LLP (CSL),5502799313,2247.6,Not Applicable
Department for Science Innovation & Technology,Intellectual Property Office,Department for Business Energy and Industrial Strategy,Intellectual Property Office,22/03/2024,Staff Costs,Business & International Policy Directorate,KPMG LLP (CSL),5502802527,739.01,Not Applicable
Department for Science Innovation & Technology,Intellectual Property Office,Department for Business Energy and Industrial Strategy,Intellectual Property Office,20/03/2024,Staff Costs,Business & International Policy Directorate,KPMG LLP (CSL),5502802528,739.01,Not Applicable
Department for Science Innovation & Technology,Intellectual Property Office,Department for Business Energy and Industrial Strategy,Intellectual Property Office,26/03/2024,Staff Costs,Strategy Directorate,KPMG LLP (CSL),5502807447,2743.09,Not Applicable
Department for Science Innovation & Technology,Intellectual Property Office,Department for Business Energy and Industrial Strategy,Intellectual Property Office,26/03/2024,Staff Costs,Strategy Directorate,KPMG LLP (CSL),5502807448,901.2,Not Applicable
Department for Science Innovation & Technology,Intellectual Property Office,Department for Business Energy and Industrial Strategy,Intellectual Property Office,26/03/2024,Staff Costs,Strategy Directorate,KPMG LLP (CSL),5502807449,901.2,Not Applicable
Department for Science Innovation & Technology,Intellectual Property Office,Department for Business Energy and Industrial Strategy,Intellectual Property Office,26/03/2024,Staff Costs,Strategy Directorate,KPMG LLP (CSL),5502807933,1928.48,Not Applicable
Department for Science Innovation & Technology,Intellectual Property Office,Department for Business Energy and Industrial Strategy,Intellectual Property Office,26/03/2024,Staff Costs,Strategy Directorate,KPMG LLP (CSL),5502807934,1928.48,Not Applicable
Department for Science Innovation & Technology,Intellectual Property Office,Department for Business Energy and Industrial Strategy,Intellectual Property Office,08/03/2024,Supporting UK Business,PDTM Directorate,Bridle Intellectual Property Ltd,133-043,2500,Not Applicable
Department for Science Innovation & Technology,Intellectual Property Office,Department for Business Energy and Industrial Strategy,Intellectual Property Office,06/03/2024,Information Technology,DDaT Directorate,Equal Experts UK Ltd,INV-14198,15000,Not Applicable
Department for Science Innovation & Technology,Intellectual Property Office,Department for Business Energy and Industrial Strategy,Intellectual Property Office,12/03/2024,Staff Costs,"Rights, Policy & Enforcement Directorate",Linkedln Ireland,78111977427,15075,Not Applicable
Department for Science Innovation & Technology,Intellectual Property Office,Department for Business Energy and Industrial Strategy,Intellectual Property Office,04/03/2024,Supporting UK Business,PDTM Directorate,IP21 LTD,31765,2500,Not Applicable
Department for Science Innovation & Technology,Intellectual Property Office,Department for Business Energy and Industrial Strategy,Intellectual Property Office,06/03/2024,Information Technology,PDTM Directorate,Clarivate Analytics (UK) Limited,2007INV00078921,169534.21,Not Applicable
Department for Science Innovation & Technology,Intellectual Property Office,Department for Business Energy and Industrial Strategy,Intellectual Property Office,05/03/2024,Pay Costs,Finance Directorate,Reed Specialist Recruitment Ltd,239843743,4407.6,Not Applicable
Department for Science Innovation & Technology,Intellectual Property Office,Department for Business Energy and Industrial Strategy,Intellectual Property Office,12/03/2024,Pay Costs,Finance Directorate,Reed Specialist Recruitment Ltd,239858138,4407.6,Not Applicable
Department for Science Innovation & Technology,Intellectual Property Office,Department for Business Energy and Industrial Strategy,Intellectual Property Office,20/03/2024,Pay Costs,Finance Directorate,Reed Specialist Recruitment Ltd,239887932,4407.6,Not Applicable
Department for Science Innovation & Technology,Intellectual Property Office,Department for Business Energy and Industrial Strategy,Intellectual Property Office,20/03/2024,Pay Costs,Finance Directorate,Reed Specialist Recruitment Ltd,239887933,881.52,Not Applicable
Department for Science Innovation & Technology,Intellectual Property Office,Department for Business Energy and Industrial Strategy,Intellectual Property Office,04/03/2024,Supporting UK Business,PDTM Directorate,Mathys & Squire IP,497240,2500,Not Applicable
Department for Science Innovation & Technology,Intellectual Property Office,Department for Business Energy and Industrial Strategy,Intellectual Property Office,25/03/2024,Staff Costs,"Rights, Policy & Enforcement Directorate",INVESTORS IN PEOPLE COMMUNITY INT,PSI14202,26400,Not Applicable
Department for Science Innovation & Technology,Intellectual Property Office,Department for Business Energy and Industrial Strategy,Intellectual Property Office,26/03/2024,Miscellaneous Expenses General,PDTM Directorate,Vinci Construction UK Ltd,24030636,127.68,Not Applicable
Department for Science Innovation & Technology,Intellectual Property Office,Department for Business Energy and Industrial Strategy,Intellectual Property Office,26/03/2024,Miscellaneous Expenses General,PDTM Directorate,Vinci Construction UK Ltd,24030636,39.6,Not Applicable
Department for Science Innovation & Technology,Intellectual Property Office,Department for Business Energy and Industrial Strategy,Intellectual Property Office,26/03/2024,Miscellaneous Expenses General,PDTM Directorate,Vinci Construction UK Ltd,24030636,388.5,Not Applicable
Department for Science Innovation & Technology,Intellectual Property Office,Department for Business Energy and Industrial Strategy,Intellectual Property Office,11/03/2024,Postage & Delivery Costs,"Rights, Policy & Enforcement Directorate",Blake Envelopes,PSINV015061,931.2,Not Applicable
Department for Science Innovation & Technology,Intellectual Property Office,Department for Business Energy and Industrial Strategy,Intellectual Property Office,06/03/2024,Supporting UK Business,PDTM Directorate,HGF Limited,784306,2500,Not Applicable
Department for Science Innovation & Technology,Intellectual Property Office,Department for Business Energy and Industrial Strategy,Intellectual Property Office,12/03/2024,Supporting UK Business,PDTM Directorate,HGF Limited,784833,2500,Not Applicable
Department for Science Innovation & Technology,Intellectual Property Office,Department for Business Energy and Industrial Strategy,Intellectual Property Office,25/03/2024,Supporting UK Business,PDTM Directorate,HGF Limited,787332,2500,Not Applicable
Department for Science Innovation & Technology,Intellectual Property Office,Department for Business Energy and Industrial Strategy,Intellectual Property Office,08/03/2024,Supporting UK Business,PDTM Directorate,Definition IP Ltd,INV-003974,2500,Not Applicable
Department for Science Innovation & Technology,Intellectual Property Office,Department for Business Energy and Industrial Strategy,Intellectual Property Office,15/03/2024,Supporting UK Business,PDTM Directorate,Lewis Silkin LLP,642004,2500,Not Applicable
Department for Science Innovation & Technology,Intellectual Property Office,Department for Business Energy and Industrial Strategy,Intellectual Property Office,15/03/2024,Supporting UK Business,PDTM Directorate,Symbiosis IP Ltd,9046-24,2500,Not Applicable
Department for Science Innovation & Technology,Intellectual Property Office,Department for Business Energy and Industrial Strategy,Intellectual Property Office,01/03/2024,Staff Costs,"Rights, Policy & Enforcement Directorate",People Untapped Limited,INV-2411,2760,Not Applicable
Department for Science Innovation & Technology,Intellectual Property Office,Department for Business Energy and Industrial Strategy,Intellectual Property Office,05/03/2024,Accommodation,PDTM Directorate,The International Dispute Resoluti,33467,2640,Not Applicable
Department for Science Innovation & Technology,Intellectual Property Office,Department for Business Energy and Industrial Strategy,Intellectual Property Office,25/03/2024,Staff Costs,"Rights, Policy & Enforcement Directorate",Tracy Mountain,104,600,Not Applicable
Department for Science Innovation & Technology,Intellectual Property Office,Department for Business Energy and Industrial Strategy,Intellectual Property Office,18/03/2024,Information Technology,Projects,Deloitte LLP,8004463391,-112026,Not Applicable
Department for Science Innovation & Technology,Intellectual Property Office,Department for Business Energy and Industrial Strategy,Intellectual Property Office,18/03/2024,Information Technology,Projects,Deloitte LLP,8004529863,3522,Not Applicable
Department for Science Innovation & Technology,Intellectual Property Office,Department for Business Energy and Industrial Strategy,Intellectual Property Office,18/03/2024,Information Technology,DDaT Directorate,Deloitte LLP,8004529864,76464,Not Applicable
Department for Science Innovation & Technology,Intellectual Property Office,Department for Business Energy and Industrial Strategy,Intellectual Property Office,18/03/2024,Information Technology,Projects,Deloitte LLP,8004529866,5147.44,Not Applicable
Department for Science Innovation & Technology,Intellectual Property Office,Department for Business Energy and Industrial Strategy,Intellectual Property Office,18/03/2024,Information Technology,DDaT Directorate,Deloitte LLP,8004558433,133152,Not Applicable
Department for Science Innovation & Technology,Intellectual Property Office,Department for Business Energy and Industrial Strategy,Intellectual Property Office,22/03/2024,Information Technology,Projects,Deloitte LLP,8004575151,205407.6,Not Applicable
Department for Science Innovation & Technology,Intellectual Property Office,Department for Business Energy and Industrial Strategy,Intellectual Property Office,22/03/2024,Information Technology,Projects,Deloitte LLP,8004576583,-205407.6,Not Applicable
Department for Science Innovation & Technology,Intellectual Property Office,Department for Business Energy and Industrial Strategy,Intellectual Property Office,22/03/2024,Information Technology,Projects,Deloitte LLP,8004576704,205407.6,Not Applicable
Department for Science Innovation & Technology,Intellectual Property Office,Department for Business Energy and Industrial Strategy,Intellectual Property Office,15/03/2024,Supporting UK Business,PDTM Directorate,BASCK Limited,24123,2500,Not Applicable
Department for Science Innovation & Technology,Intellectual Property Office,Department for Business Energy and Industrial Strategy,Intellectual Property Office,13/03/2024,Information Technology,DDaT Directorate,Bechtle Direct Ltd,1024467229,9221.3,Not Applicable
Department for Science Innovation & Technology,Intellectual Property Office,Department for Business Energy and Industrial Strategy,Intellectual Property Office,05/03/2024,Pay Costs,DDaT Directorate,Alexander Mann Solutions Limited,2971947,3465.3,Not Applicable
Department for Science Innovation & Technology,Intellectual Property Office,Department for Business Energy and Industrial Strategy,Intellectual Property Office,01/03/2024,Pay Costs,PDTM Directorate,Alexander Mann Solutions Limited,2981007,747.25,Not Applicable
Department for Science Innovation & Technology,Intellectual Property Office,Department for Business Energy and Industrial Strategy,Intellectual Property Office,01/03/2024,Pay Costs,PDTM Directorate,Alexander Mann Solutions Limited,2981012,831.24,Not Applicable
Department for Science Innovation & Technology,Intellectual Property Office,Department for Business Energy and Industrial Strategy,Intellectual Property Office,01/03/2024,Pay Costs,PDTM Directorate,Alexander Mann Solutions Limited,2981030,803.64,Not Applicable
Department for Science Innovation & Technology,Intellectual Property Office,Department for Business Energy and Industrial Strategy,Intellectual Property Office,06/03/2024,Pay Costs,PDTM Directorate,Alexander Mann Solutions Limited,2985343,4095.36,Not Applicable
Department for Science Innovation & Technology,Intellectual Property Office,Department for Business Energy and Industrial Strategy,Intellectual Property Office,06/03/2024,Pay Costs,PDTM Directorate,Alexander Mann Solutions Limited,2985344,747.25,Not Applicable
Department for Science Innovation & Technology,Intellectual Property Office,Department for Business Energy and Industrial Strategy,Intellectual Property Office,06/03/2024,Pay Costs,PDTM Directorate,Alexander Mann Solutions Limited,2985345,803.64,Not Applicable
Department for Science Innovation & Technology,Intellectual Property Office,Department for Business Energy and Industrial Strategy,Intellectual Property Office,06/03/2024,Pay Costs,PDTM Directorate,Alexander Mann Solutions Limited,2985346,803.64,Not Applicable
Department for Science Innovation & Technology,Intellectual Property Office,Department for Business Energy and Industrial Strategy,Intellectual Property Office,06/03/2024,Pay Costs,PDTM Directorate,Alexander Mann Solutions Limited,2985347,803.64,Not Applicable
Department for Science Innovation & Technology,Intellectual Property Office,Department for Business Energy and Industrial Strategy,Intellectual Property Office,06/03/2024,Pay Costs,PDTM Directorate,Alexander Mann Solutions Limited,2985348,749.34,Not Applicable
Department for Science Innovation & Technology,Intellectual Property Office,Department for Business Energy and Industrial Strategy,Intellectual Property Office,04/03/2024,Pay Costs,PDTM Directorate,Alexander Mann Solutions Limited,2985349,651.6,Not Applicable
Department for Science Innovation & Technology,Intellectual Property Office,Department for Business Energy and Industrial Strategy,Intellectual Property Office,04/03/2024,Pay Costs,PDTM Directorate,Alexander Mann Solutions Limited,2985350,803.64,Not Applicable
Department for Science Innovation & Technology,Intellectual Property Office,Department for Business Energy and Industrial Strategy,Intellectual Property Office,04/03/2024,Pay Costs,PDTM Directorate,Alexander Mann Solutions Limited,2985351,747.25,Not Applicable
Department for Science Innovation & Technology,Intellectual Property Office,Department for Business Energy and Industrial Strategy,Intellectual Property Office,06/03/2024,Pay Costs,DDaT Directorate,Alexander Mann Solutions Limited,2985352,8007.12,Not Applicable
Department for Science Innovation & Technology,Intellectual Property Office,Department for Business Energy and Industrial Strategy,Intellectual Property Office,06/03/2024,Pay Costs,DDaT Directorate,Alexander Mann Solutions Limited,2985353,2772.24,Not Applicable
Department for Science Innovation & Technology,Intellectual Property Office,Department for Business Energy and Industrial Strategy,Intellectual Property Office,06/03/2024,Pay Costs,DDaT Directorate,Alexander Mann Solutions Limited,2985354,4431.36,Not Applicable
Department for Science Innovation & Technology,Intellectual Property Office,Department for Business Energy and Industrial Strategy,Intellectual Property Office,06/03/2024,Pay Costs,PDTM Directorate,Alexander Mann Solutions Limited,2985355,803.64,Not Applicable
Department for Science Innovation & Technology,Intellectual Property Office,Department for Business Energy and Industrial Strategy,Intellectual Property Office,06/03/2024,Pay Costs,PDTM Directorate,Alexander Mann Solutions Limited,2985356,803.64,Not Applicable
Department for Science Innovation & Technology,Intellectual Property Office,Department for Business Energy and Industrial Strategy,Intellectual Property Office,06/03/2024,Pay Costs,PDTM Directorate,Alexander Mann Solutions Limited,2985357,803.64,Not Applicable
Department for Science Innovation & Technology,Intellectual Property Office,Department for Business Energy and Industrial Strategy,Intellectual Property Office,06/03/2024,Pay Costs,PDTM Directorate,Alexander Mann Solutions Limited,2985358,803.64,Not Applicable
Department for Science Innovation & Technology,Intellectual Property Office,Department for Business Energy and Industrial Strategy,Intellectual Property Office,06/03/2024,Pay Costs,PDTM Directorate,Alexander Mann Solutions Limited,2985359,640.74,Not Applicable
Department for Science Innovation & Technology,Intellectual Property Office,Department for Business Energy and Industrial Strategy,Intellectual Property Office,06/03/2024,Pay Costs,PDTM Directorate,Alexander Mann Solutions Limited,2985360,747.25,Not Applicable
Department for Science Innovation & Technology,Intellectual Property Office,Department for Business Energy and Industrial Strategy,Intellectual Property Office,06/03/2024,Pay Costs,PDTM Directorate,Alexander Mann Solutions Limited,2985361,716.76,Not Applicable
Department for Science Innovation & Technology,Intellectual Property Office,Department for Business Energy and Industrial Strategy,Intellectual Property Office,06/03/2024,Pay Costs,PDTM Directorate,Alexander Mann Solutions Limited,2985362,646.18,Not Applicable
Department for Science Innovation & Technology,Intellectual Property Office,Department for Business Energy and Industrial Strategy,Intellectual Property Office,06/03/2024,Pay Costs,PDTM Directorate,Alexander Mann Solutions Limited,2985363,747.25,Not Applicable
Department for Science Innovation & Technology,Intellectual Property Office,Department for Business Energy and Industrial Strategy,Intellectual Property Office,06/03/2024,Pay Costs,PDTM Directorate,Alexander Mann Solutions Limited,2985364,651.6,Not Applicable
Department for Science Innovation & Technology,Intellectual Property Office,Department for Business Energy and Industrial Strategy,Intellectual Property Office,06/03/2024,Pay Costs,PDTM Directorate,Alexander Mann Solutions Limited,2985365,713.95,Not Applicable
Department for Science Innovation & Technology,Intellectual Property Office,Department for Business Energy and Industrial Strategy,Intellectual Property Office,08/03/2024,Pay Costs,PDTM Directorate,Alexander Mann Solutions Limited,2985366,1444.38,Not Applicable
Department for Science Innovation & Technology,Intellectual Property Office,Department for Business Energy and Industrial Strategy,Intellectual Property Office,08/03/2024,Pay Costs,PDTM Directorate,Alexander Mann Solutions Limited,2985368,1607.28,Not Applicable
Department for Science Innovation & Technology,Intellectual Property Office,Department for Business Energy and Industrial Strategy,Intellectual Property Office,06/03/2024,Pay Costs,PDTM Directorate,Alexander Mann Solutions Limited,2985369,803.64,Not Applicable
Department for Science Innovation & Technology,Intellectual Property Office,Department for Business Energy and Industrial Strategy,Intellectual Property Office,06/03/2024,Pay Costs,PDTM Directorate,Alexander Mann Solutions Limited,2985370,803.64,Not Applicable
Department for Science Innovation & Technology,Intellectual Property Office,Department for Business Energy and Industrial Strategy,Intellectual Property Office,06/03/2024,Pay Costs,DDaT Directorate,Alexander Mann Solutions Limited,2985371,3695.58,Not Applicable
Department for Science Innovation & Technology,Intellectual Property Office,Department for Business Energy and Industrial Strategy,Intellectual Property Office,06/03/2024,Pay Costs,PDTM Directorate,Alexander Mann Solutions Limited,2985372,803.64,Not Applicable
Department for Science Innovation & Technology,Intellectual Property Office,Department for Business Energy and Industrial Strategy,Intellectual Property Office,06/03/2024,Pay Costs,PDTM Directorate,Alexander Mann Solutions Limited,2985373,803.64,Not Applicable
Department for Science Innovation & Technology,Intellectual Property Office,Department for Business Energy and Industrial Strategy,Intellectual Property Office,06/03/2024,Pay Costs,PDTM Directorate,Alexander Mann Solutions Limited,2985374,713.95,Not Applicable
Department for Science Innovation & Technology,Intellectual Property Office,Department for Business Energy and Industrial Strategy,Intellectual Property Office,06/03/2024,Pay Costs,PDTM Directorate,Alexander Mann Solutions Limited,2985376,705.9,Not Applicable
Department for Science Innovation & Technology,Intellectual Property Office,Department for Business Energy and Industrial Strategy,Intellectual Property Office,06/03/2024,Pay Costs,PDTM Directorate,Alexander Mann Solutions Limited,2985377,862.62,Not Applicable
Department for Science Innovation & Technology,Intellectual Property Office,Department for Business Energy and Industrial Strategy,Intellectual Property Office,06/03/2024,Pay Costs,PDTM Directorate,Alexander Mann Solutions Limited,2985378,713.95,Not Applicable
Department for Science Innovation & Technology,Intellectual Property Office,Department for Business Energy and Industrial Strategy,Intellectual Property Office,06/03/2024,Pay Costs,DDaT Directorate,Alexander Mann Solutions Limited,2985379,4410.42,Not Applicable
Department for Science Innovation & Technology,Intellectual Property Office,Department for Business Energy and Industrial Strategy,Intellectual Property Office,06/03/2024,Pay Costs,PDTM Directorate,Alexander Mann Solutions Limited,2985380,651.6,Not Applicable
Department for Science Innovation & Technology,Intellectual Property Office,Department for Business Energy and Industrial Strategy,Intellectual Property Office,06/03/2024,Pay Costs,DDaT Directorate,Alexander Mann Solutions Limited,2985381,2710.08,Not Applicable
Department for Science Innovation & Technology,Intellectual Property Office,Department for Business Energy and Industrial Strategy,Intellectual Property Office,06/03/2024,Pay Costs,DDaT Directorate,Alexander Mann Solutions Limited,2985382,3216.12,Not Applicable
Department for Science Innovation & Technology,Intellectual Property Office,Department for Business Energy and Industrial Strategy,Intellectual Property Office,06/03/2024,Pay Costs,PDTM Directorate,Alexander Mann Solutions Limited,2985383,747.25,Not Applicable
Department for Science Innovation & Technology,Intellectual Property Office,Department for Business Energy and Industrial Strategy,Intellectual Property Office,06/03/2024,Pay Costs,PDTM Directorate,Alexander Mann Solutions Limited,2985384,747.25,Not Applicable
Department for Science Innovation & Technology,Intellectual Property Office,Department for Business Energy and Industrial Strategy,Intellectual Property Office,06/03/2024,Pay Costs,DDaT Directorate,Alexander Mann Solutions Limited,2985385,2795.4,Not Applicable
Department for Science Innovation & Technology,Intellectual Property Office,Department for Business Energy and Industrial Strategy,Intellectual Property Office,06/03/2024,Pay Costs,PDTM Directorate,Alexander Mann Solutions Limited,2985386,1471.54,Not Applicable
Department for Science Innovation & Technology,Intellectual Property Office,Department for Business Energy and Industrial Strategy,Intellectual Property Office,06/03/2024,Pay Costs,Finance Directorate,Alexander Mann Solutions Limited,2985387,781.92,Not Applicable
Department for Science Innovation & Technology,Intellectual Property Office,Department for Business Energy and Industrial Strategy,Intellectual Property Office,06/03/2024,Pay Costs,DDaT Directorate,Alexander Mann Solutions Limited,2985388,4095.36,Not Applicable
Department for Science Innovation & Technology,Intellectual Property Office,Department for Business Energy and Industrial Strategy,Intellectual Property Office,06/03/2024,Pay Costs,PDTM Directorate,Alexander Mann Solutions Limited,2985389,803.64,Not Applicable
Department for Science Innovation & Technology,Intellectual Property Office,Department for Business Energy and Industrial Strategy,Intellectual Property Office,06/03/2024,Pay Costs,PDTM Directorate,Alexander Mann Solutions Limited,2985390,803.64,Not Applicable
Department for Science Innovation & Technology,Intellectual Property Office,Department for Business Energy and Industrial Strategy,Intellectual Property Office,06/03/2024,Pay Costs,PDTM Directorate,Alexander Mann Solutions Limited,2985393,803.64,Not Applicable
Department for Science Innovation & Technology,Intellectual Property Office,Department for Business Energy and Industrial Strategy,Intellectual Property Office,06/03/2024,Pay Costs,DDaT Directorate,Alexander Mann Solutions Limited,2985394,5453.94,Not Applicable
Department for Science Innovation & Technology,Intellectual Property Office,Department for Business Energy and Industrial Strategy,Intellectual Property Office,06/03/2024,Pay Costs,PDTM Directorate,Alexander Mann Solutions Limited,2985395,803.64,Not Applicable
Department for Science Innovation & Technology,Intellectual Property Office,Department for Business Energy and Industrial Strategy,Intellectual Property Office,06/03/2024,Pay Costs,PDTM Directorate,Alexander Mann Solutions Limited,2985396,640.74,Not Applicable
Department for Science Innovation & Technology,Intellectual Property Office,Department for Business Energy and Industrial Strategy,Intellectual Property Office,06/03/2024,Pay Costs,PDTM Directorate,Alexander Mann Solutions Limited,2985397,803.64,Not Applicable
Department for Science Innovation & Technology,Intellectual Property Office,Department for Business Energy and Industrial Strategy,Intellectual Property Office,06/03/2024,Pay Costs,DDaT Directorate,Alexander Mann Solutions Limited,2985398,4158.36,Not Applicable
Department for Science Innovation & Technology,Intellectual Property Office,Department for Business Energy and Industrial Strategy,Intellectual Property Office,06/03/2024,Pay Costs,Projects,Alexander Mann Solutions Limited,2985399,8623.08,Not Applicable
Department for Science Innovation & Technology,Intellectual Property Office,Department for Business Energy and Industrial Strategy,Intellectual Property Office,08/03/2024,Pay Costs,DDaT Directorate,Alexander Mann Solutions Limited,2985400,8931,Not Applicable
Department for Science Innovation & Technology,Intellectual Property Office,Department for Business Energy and Industrial Strategy,Intellectual Property Office,06/03/2024,Pay Costs,DDaT Directorate,Alexander Mann Solutions Limited,2985401,4095.36,Not Applicable
Department for Science Innovation & Technology,Intellectual Property Office,Department for Business Energy and Industrial Strategy,Intellectual Property Office,06/03/2024,Pay Costs,PDTM Directorate,Alexander Mann Solutions Limited,2985402,803.64,Not Applicable
Department for Science Innovation & Technology,Intellectual Property Office,Department for Business Energy and Industrial Strategy,Intellectual Property Office,06/03/2024,Pay Costs,PDTM Directorate,Alexander Mann Solutions Limited,2985403,1014.66,Not Applicable
Department for Science Innovation & Technology,Intellectual Property Office,Department for Business Energy and Industrial Strategy,Intellectual Property Office,06/03/2024,Pay Costs,PDTM Directorate,Alexander Mann Solutions Limited,2985404,803.64,Not Applicable
Department for Science Innovation & Technology,Intellectual Property Office,Department for Business Energy and Industrial Strategy,Intellectual Property Office,06/03/2024,Pay Costs,PDTM Directorate,Alexander Mann Solutions Limited,2985405,803.64,Not Applicable
Department for Science Innovation & Technology,Intellectual Property Office,Department for Business Energy and Industrial Strategy,Intellectual Property Office,06/03/2024,Pay Costs,PDTM Directorate,Alexander Mann Solutions Limited,2985406,803.64,Not Applicable
Department for Science Innovation & Technology,Intellectual Property Office,Department for Business Energy and Industrial Strategy,Intellectual Property Office,06/03/2024,Pay Costs,PDTM Directorate,Alexander Mann Solutions Limited,2985407,4095.36,Not Applicable
Department for Science Innovation & Technology,Intellectual Property Office,Department for Business Energy and Industrial Strategy,Intellectual Property Office,06/03/2024,Pay Costs,PDTM Directorate,Alexander Mann Solutions Limited,2985408,803.64,Not Applicable
Department for Science Innovation & Technology,Intellectual Property Office,Department for Business Energy and Industrial Strategy,Intellectual Property Office,06/03/2024,Pay Costs,PDTM Directorate,Alexander Mann Solutions Limited,2985409,803.64,Not Applicable
Department for Science Innovation & Technology,Intellectual Property Office,Department for Business Energy and Industrial Strategy,Intellectual Property Office,06/03/2024,Pay Costs,PDTM Directorate,Alexander Mann Solutions Limited,2985410,1056.86,Not Applicable
Department for Science Innovation & Technology,Intellectual Property Office,Department for Business Energy and Industrial Strategy,Intellectual Property Office,06/03/2024,Pay Costs,Projects,Alexander Mann Solutions Limited,2985411,1131.62,Not Applicable
Department for Science Innovation & Technology,Intellectual Property Office,Department for Business Energy and Industrial Strategy,Intellectual Property Office,06/03/2024,Pay Costs,PDTM Directorate,Alexander Mann Solutions Limited,2985412,803.64,Not Applicable
Department for Science Innovation & Technology,Intellectual Property Office,Department for Business Energy and Industrial Strategy,Intellectual Property Office,06/03/2024,Pay Costs,DDaT Directorate,Alexander Mann Solutions Limited,2985413,3024.3,Not Applicable
Department for Science Innovation & Technology,Intellectual Property Office,Department for Business Energy and Industrial Strategy,Intellectual Property Office,06/03/2024,Pay Costs,DDaT Directorate,Alexander Mann Solutions Limited,2985414,3937.86,Not Applicable
Department for Science Innovation & Technology,Intellectual Property Office,Department for Business Energy and Industrial Strategy,Intellectual Property Office,06/03/2024,Pay Costs,Projects,Alexander Mann Solutions Limited,2985415,4090.44,Not Applicable
Department for Science Innovation & Technology,Intellectual Property Office,Department for Business Energy and Industrial Strategy,Intellectual Property Office,06/03/2024,Pay Costs,PDTM Directorate,Alexander Mann Solutions Limited,2985416,1607.28,Not Applicable
Department for Science Innovation & Technology,Intellectual Property Office,Department for Business Energy and Industrial Strategy,Intellectual Property Office,06/03/2024,Pay Costs,Projects,Alexander Mann Solutions Limited,2985417,3350.64,Not Applicable
Department for Science Innovation & Technology,Intellectual Property Office,Department for Business Energy and Industrial Strategy,Intellectual Property Office,06/03/2024,Pay Costs,Projects,Alexander Mann Solutions Limited,2985418,2999.7,Not Applicable
Department for Science Innovation & Technology,Intellectual Property Office,Department for Business Energy and Industrial Strategy,Intellectual Property Office,06/03/2024,Pay Costs,PDTM Directorate,Alexander Mann Solutions Limited,2985419,803.64,Not Applicable
Department for Science Innovation & Technology,Intellectual Property Office,Department for Business Energy and Industrial Strategy,Intellectual Property Office,06/03/2024,Pay Costs,DDaT Directorate,Alexander Mann Solutions Limited,2985420,4619.52,Not Applicable
Department for Science Innovation & Technology,Intellectual Property Office,Department for Business Energy and Industrial Strategy,Intellectual Property Office,06/03/2024,Pay Costs,"Rights, Policy & Enforcement Directorate",Alexander Mann Solutions Limited,2985421,803.64,Not Applicable
Department for Science Innovation & Technology,Intellectual Property Office,Department for Business Energy and Industrial Strategy,Intellectual Property Office,06/03/2024,Pay Costs,PDTM Directorate,Alexander Mann Solutions Limited,2985422,803.64,Not Applicable
Department for Science Innovation & Technology,Intellectual Property Office,Department for Business Energy and Industrial Strategy,Intellectual Property Office,06/03/2024,Pay Costs,PDTM Directorate,Alexander Mann Solutions Limited,2985423,803.64,Not Applicable
Department for Science Innovation & Technology,Intellectual Property Office,Department for Business Energy and Industrial Strategy,Intellectual Property Office,06/03/2024,Pay Costs,DDaT Directorate,Alexander Mann Solutions Limited,2985424,4725.42,Not Applicable
Department for Science Innovation & Technology,Intellectual Property Office,Department for Business Energy and Industrial Strategy,Intellectual Property Office,06/03/2024,Pay Costs,PDTM Directorate,Alexander Mann Solutions Limited,2985425,760.2,Not Applicable
Department for Science Innovation & Technology,Intellectual Property Office,Department for Business Energy and Industrial Strategy,Intellectual Property Office,08/03/2024,Pay Costs,PDTM Directorate,Alexander Mann Solutions Limited,2985426,831.24,Not Applicable
Department for Science Innovation & Technology,Intellectual Property Office,Department for Business Energy and Industrial Strategy,Intellectual Property Office,08/03/2024,Pay Costs,PDTM Directorate,Alexander Mann Solutions Limited,2985427,831.24,Not Applicable
Department for Science Innovation & Technology,Intellectual Property Office,Department for Business Energy and Industrial Strategy,Intellectual Property Office,06/03/2024,Pay Costs,PDTM Directorate,Alexander Mann Solutions Limited,2985428,803.64,Not Applicable
Department for Science Innovation & Technology,Intellectual Property Office,Department for Business Energy and Industrial Strategy,Intellectual Property Office,06/03/2024,Pay Costs,PDTM Directorate,Alexander Mann Solutions Limited,2985429,814.5,Not Applicable
Department for Science Innovation & Technology,Intellectual Property Office,Department for Business Energy and Industrial Strategy,Intellectual Property Office,06/03/2024,Pay Costs,PDTM Directorate,Alexander Mann Solutions Limited,2985430,803.64,Not Applicable
Department for Science Innovation & Technology,Intellectual Property Office,Department for Business Energy and Industrial Strategy,Intellectual Property Office,06/03/2024,Pay Costs,PDTM Directorate,Alexander Mann Solutions Limited,2985431,803.64,Not Applicable
Department for Science Innovation & Technology,Intellectual Property Office,Department for Business Energy and Industrial Strategy,Intellectual Property Office,06/03/2024,Pay Costs,PDTM Directorate,Alexander Mann Solutions Limited,2985432,803.64,Not Applicable
Department for Science Innovation & Technology,Intellectual Property Office,Department for Business Energy and Industrial Strategy,Intellectual Property Office,06/03/2024,Pay Costs,PDTM Directorate,Alexander Mann Solutions Limited,2985433,803.64,Not Applicable
Department for Science Innovation & Technology,Intellectual Property Office,Department for Business Energy and Industrial Strategy,Intellectual Property Office,06/03/2024,Pay Costs,PDTM Directorate,Alexander Mann Solutions Limited,2985434,803.64,Not Applicable
Department for Science Innovation & Technology,Intellectual Property Office,Department for Business Energy and Industrial Strategy,Intellectual Property Office,06/03/2024,Pay Costs,PDTM Directorate,Alexander Mann Solutions Limited,2985435,781.92,Not Applicable
Department for Science Innovation & Technology,Intellectual Property Office,Department for Business Energy and Industrial Strategy,Intellectual Property Office,06/03/2024,Pay Costs,PDTM Directorate,Alexander Mann Solutions Limited,2985436,640.74,Not Applicable
Department for Science Innovation & Technology,Intellectual Property Office,Department for Business Energy and Industrial Strategy,Intellectual Property Office,13/03/2024,Pay Costs,PDTM Directorate,Alexander Mann Solutions Limited,2989856,4095.36,Not Applicable
Department for Science Innovation & Technology,Intellectual Property Office,Department for Business Energy and Industrial Strategy,Intellectual Property Office,13/03/2024,Pay Costs,PDTM Directorate,Alexander Mann Solutions Limited,2989857,747.25,Not Applicable
Department for Science Innovation & Technology,Intellectual Property Office,Department for Business Energy and Industrial Strategy,Intellectual Property Office,13/03/2024,Pay Costs,PDTM Directorate,Alexander Mann Solutions Limited,2989858,831.24,Not Applicable
Department for Science Innovation & Technology,Intellectual Property Office,Department for Business Energy and Industrial Strategy,Intellectual Property Office,13/03/2024,Pay Costs,PDTM Directorate,Alexander Mann Solutions Limited,2989859,831.24,Not Applicable
Department for Science Innovation & Technology,Intellectual Property Office,Department for Business Energy and Industrial Strategy,Intellectual Property Office,13/03/2024,Pay Costs,PDTM Directorate,Alexander Mann Solutions Limited,2989860,831.24,Not Applicable
Department for Science Innovation & Technology,Intellectual Property Office,Department for Business Energy and Industrial Strategy,Intellectual Property Office,13/03/2024,Pay Costs,PDTM Directorate,Alexander Mann Solutions Limited,2989861,760.2,Not Applicable
Department for Science Innovation & Technology,Intellectual Property Office,Department for Business Energy and Industrial Strategy,Intellectual Property Office,13/03/2024,Pay Costs,PDTM Directorate,Alexander Mann Solutions Limited,2989862,1634.88,Not Applicable
Department for Science Innovation & Technology,Intellectual Property Office,Department for Business Energy and Industrial Strategy,Intellectual Property Office,13/03/2024,Pay Costs,PDTM Directorate,Alexander Mann Solutions Limited,2989863,803.64,Not Applicable
Department for Science Innovation & Technology,Intellectual Property Office,Department for Business Energy and Industrial Strategy,Intellectual Property Office,13/03/2024,Pay Costs,PDTM Directorate,Alexander Mann Solutions Limited,2989864,754.78,Not Applicable
Department for Science Innovation & Technology,Intellectual Property Office,Department for Business Energy and Industrial Strategy,Intellectual Property Office,13/03/2024,Pay Costs,PDTM Directorate,Alexander Mann Solutions Limited,2989865,651.6,Not Applicable
Department for Science Innovation & Technology,Intellectual Property Office,Department for Business Energy and Industrial Strategy,Intellectual Property Office,13/03/2024,Pay Costs,PDTM Directorate,Alexander Mann Solutions Limited,2989866,803.64,Not Applicable
Department for Science Innovation & Technology,Intellectual Property Office,Department for Business Energy and Industrial Strategy,Intellectual Property Office,13/03/2024,Pay Costs,PDTM Directorate,Alexander Mann Solutions Limited,2989867,646.27,Not Applicable
Department for Science Innovation & Technology,Intellectual Property Office,Department for Business Energy and Industrial Strategy,Intellectual Property Office,13/03/2024,Pay Costs,DDaT Directorate,Alexander Mann Solutions Limited,2989868,4003.56,Not Applicable
Department for Science Innovation & Technology,Intellectual Property Office,Department for Business Energy and Industrial Strategy,Intellectual Property Office,13/03/2024,Pay Costs,DDaT Directorate,Alexander Mann Solutions Limited,2989869,3465.3,Not Applicable
Department for Science Innovation & Technology,Intellectual Property Office,Department for Business Energy and Industrial Strategy,Intellectual Property Office,13/03/2024,Pay Costs,DDaT Directorate,Alexander Mann Solutions Limited,2989870,4431.36,Not Applicable
Department for Science Innovation & Technology,Intellectual Property Office,Department for Business Energy and Industrial Strategy,Intellectual Property Office,13/03/2024,Pay Costs,PDTM Directorate,Alexander Mann Solutions Limited,2989871,803.64,Not Applicable
Department for Science Innovation & Technology,Intellectual Property Office,Department for Business Energy and Industrial Strategy,Intellectual Property Office,13/03/2024,Pay Costs,PDTM Directorate,Alexander Mann Solutions Limited,2989872,803.64,Not Applicable
Department for Science Innovation & Technology,Intellectual Property Office,Department for Business Energy and Industrial Strategy,Intellectual Property Office,13/03/2024,Pay Costs,PDTM Directorate,Alexander Mann Solutions Limited,2989873,651.6,Not Applicable
Department for Science Innovation & Technology,Intellectual Property Office,Department for Business Energy and Industrial Strategy,Intellectual Property Office,13/03/2024,Pay Costs,PDTM Directorate,Alexander Mann Solutions Limited,2989874,803.64,Not Applicable
Department for Science Innovation & Technology,Intellectual Property Office,Department for Business Energy and Industrial Strategy,Intellectual Property Office,13/03/2024,Pay Costs,PDTM Directorate,Alexander Mann Solutions Limited,2989876,747.25,Not Applicable
Department for Science Innovation & Technology,Intellectual Property Office,Department for Business Energy and Industrial Strategy,Intellectual Property Office,13/03/2024,Pay Costs,PDTM Directorate,Alexander Mann Solutions Limited,2989878,747.25,Not Applicable
Department for Science Innovation & Technology,Intellectual Property Office,Department for Business Energy and Industrial Strategy,Intellectual Property Office,13/03/2024,Pay Costs,PDTM Directorate,Alexander Mann Solutions Limited,2989879,651.6,Not Applicable
Department for Science Innovation & Technology,Intellectual Property Office,Department for Business Energy and Industrial Strategy,Intellectual Property Office,13/03/2024,Pay Costs,PDTM Directorate,Alexander Mann Solutions Limited,2989880,713.95,Not Applicable
Department for Science Innovation & Technology,Intellectual Property Office,Department for Business Energy and Industrial Strategy,Intellectual Property Office,13/03/2024,Pay Costs,PDTM Directorate,Alexander Mann Solutions Limited,2989881,803.64,Not Applicable
Department for Science Innovation & Technology,Intellectual Property Office,Department for Business Energy and Industrial Strategy,Intellectual Property Office,13/03/2024,Pay Costs,PDTM Directorate,Alexander Mann Solutions Limited,2989883,640.74,Not Applicable
Department for Science Innovation & Technology,Intellectual Property Office,Department for Business Energy and Industrial Strategy,Intellectual Property Office,13/03/2024,Pay Costs,PDTM Directorate,Alexander Mann Solutions Limited,2989884,803.64,Not Applicable
Department for Science Innovation & Technology,Intellectual Property Office,Department for Business Energy and Industrial Strategy,Intellectual Property Office,13/03/2024,Pay Costs,PDTM Directorate,Alexander Mann Solutions Limited,2989885,803.64,Not Applicable
Department for Science Innovation & Technology,Intellectual Property Office,Department for Business Energy and Industrial Strategy,Intellectual Property Office,13/03/2024,Pay Costs,PDTM Directorate,Alexander Mann Solutions Limited,2989887,803.64,Not Applicable
Department for Science Innovation & Technology,Intellectual Property Office,Department for Business Energy and Industrial Strategy,Intellectual Property Office,13/03/2024,Pay Costs,PDTM Directorate,Alexander Mann Solutions Limited,2989888,713.95,Not Applicable
Department for Science Innovation & Technology,Intellectual Property Office,Department for Business Energy and Industrial Strategy,Intellectual Property Office,13/03/2024,Pay Costs,PDTM Directorate,Alexander Mann Solutions Limited,2989889,640.74,Not Applicable
Department for Science Innovation & Technology,Intellectual Property Office,Department for Business Energy and Industrial Strategy,Intellectual Property Office,13/03/2024,Pay Costs,PDTM Directorate,Alexander Mann Solutions Limited,2989891,713.95,Not Applicable
Department for Science Innovation & Technology,Intellectual Property Office,Department for Business Energy and Industrial Strategy,Intellectual Property Office,13/03/2024,Pay Costs,DDaT Directorate,Alexander Mann Solutions Limited,2989892,4410.42,Not Applicable
Department for Science Innovation & Technology,Intellectual Property Office,Department for Business Energy and Industrial Strategy,Intellectual Property Office,13/03/2024,Pay Costs,PDTM Directorate,Alexander Mann Solutions Limited,2989893,1453.48,Not Applicable
Department for Science Innovation & Technology,Intellectual Property Office,Department for Business Energy and Industrial Strategy,Intellectual Property Office,13/03/2024,Pay Costs,DDaT Directorate,Alexander Mann Solutions Limited,2989894,2710.08,Not Applicable
Department for Science Innovation & Technology,Intellectual Property Office,Department for Business Energy and Industrial Strategy,Intellectual Property Office,13/03/2024,Pay Costs,DDaT Directorate,Alexander Mann Solutions Limited,2989895,3216.12,Not Applicable
Department for Science Innovation & Technology,Intellectual Property Office,Department for Business Energy and Industrial Strategy,Intellectual Property Office,13/03/2024,Pay Costs,PDTM Directorate,Alexander Mann Solutions Limited,2989896,747.25,Not Applicable
Department for Science Innovation & Technology,Intellectual Property Office,Department for Business Energy and Industrial Strategy,Intellectual Property Office,13/03/2024,Pay Costs,PDTM Directorate,Alexander Mann Solutions Limited,2989897,747.25,Not Applicable
Department for Science Innovation & Technology,Intellectual Property Office,Department for Business Energy and Industrial Strategy,Intellectual Property Office,13/03/2024,Pay Costs,DDaT Directorate,Alexander Mann Solutions Limited,2989898,2795.4,Not Applicable
Department for Science Innovation & Technology,Intellectual Property Office,Department for Business Energy and Industrial Strategy,Intellectual Property Office,13/03/2024,Pay Costs,PDTM Directorate,Alexander Mann Solutions Limited,2989899,803.64,Not Applicable
Department for Science Innovation & Technology,Intellectual Property Office,Department for Business Energy and Industrial Strategy,Intellectual Property Office,13/03/2024,Pay Costs,Finance Directorate,Alexander Mann Solutions Limited,2989900,771.06,Not Applicable
Department for Science Innovation & Technology,Intellectual Property Office,Department for Business Energy and Industrial Strategy,Intellectual Property Office,13/03/2024,Pay Costs,PDTM Directorate,Alexander Mann Solutions Limited,2989901,803.64,Not Applicable
Department for Science Innovation & Technology,Intellectual Property Office,Department for Business Energy and Industrial Strategy,Intellectual Property Office,13/03/2024,Pay Costs,PDTM Directorate,Alexander Mann Solutions Limited,2989903,803.64,Not Applicable
Department for Science Innovation & Technology,Intellectual Property Office,Department for Business Energy and Industrial Strategy,Intellectual Property Office,13/03/2024,Pay Costs,PDTM Directorate,Alexander Mann Solutions Limited,2989904,803.64,Not Applicable
Department for Science Innovation & Technology,Intellectual Property Office,Department for Business Energy and Industrial Strategy,Intellectual Property Office,13/03/2024,Pay Costs,PDTM Directorate,Alexander Mann Solutions Limited,2989905,803.64,Not Applicable
Department for Science Innovation & Technology,Intellectual Property Office,Department for Business Energy and Industrial Strategy,Intellectual Property Office,13/03/2024,Pay Costs,DDaT Directorate,Alexander Mann Solutions Limited,2989906,4158.36,Not Applicable
Department for Science Innovation & Technology,Intellectual Property Office,Department for Business Energy and Industrial Strategy,Intellectual Property Office,13/03/2024,Pay Costs,Projects,Alexander Mann Solutions Limited,2989907,4311.54,Not Applicable
Department for Science Innovation & Technology,Intellectual Property Office,Department for Business Energy and Industrial Strategy,Intellectual Property Office,13/03/2024,Pay Costs,DDaT Directorate,Alexander Mann Solutions Limited,2989908,4095.36,Not Applicable
Department for Science Innovation & Technology,Intellectual Property Office,Department for Business Energy and Industrial Strategy,Intellectual Property Office,13/03/2024,Pay Costs,PDTM Directorate,Alexander Mann Solutions Limited,2989909,803.64,Not Applicable
Department for Science Innovation & Technology,Intellectual Property Office,Department for Business Energy and Industrial Strategy,Intellectual Property Office,13/03/2024,Pay Costs,PDTM Directorate,Alexander Mann Solutions Limited,2989910,1099.07,Not Applicable
Department for Science Innovation & Technology,Intellectual Property Office,Department for Business Energy and Industrial Strategy,Intellectual Property Office,13/03/2024,Pay Costs,"Rights, Policy & Enforcement Directorate",Alexander Mann Solutions Limited,2989911,1292.34,Not Applicable
Department for Science Innovation & Technology,Intellectual Property Office,Department for Business Energy and Industrial Strategy,Intellectual Property Office,13/03/2024,Pay Costs,PDTM Directorate,Alexander Mann Solutions Limited,2989913,803.64,Not Applicable
Department for Science Innovation & Technology,Intellectual Property Office,Department for Business Energy and Industrial Strategy,Intellectual Property Office,13/03/2024,Pay Costs,PDTM Directorate,Alexander Mann Solutions Limited,2989914,803.64,Not Applicable
Department for Science Innovation & Technology,Intellectual Property Office,Department for Business Energy and Industrial Strategy,Intellectual Property Office,13/03/2024,Pay Costs,PDTM Directorate,Alexander Mann Solutions Limited,2989915,803.64,Not Applicable
Department for Science Innovation & Technology,Intellectual Property Office,Department for Business Energy and Industrial Strategy,Intellectual Property Office,13/03/2024,Pay Costs,"Rights, Policy & Enforcement Directorate",Alexander Mann Solutions Limited,2989916,1662.36,Not Applicable
Department for Science Innovation & Technology,Intellectual Property Office,Department for Business Energy and Industrial Strategy,Intellectual Property Office,13/03/2024,Pay Costs,PDTM Directorate,Alexander Mann Solutions Limited,2989917,4095.36,Not Applicable
Department for Science Innovation & Technology,Intellectual Property Office,Department for Business Energy and Industrial Strategy,Intellectual Property Office,13/03/2024,Pay Costs,PDTM Directorate,Alexander Mann Solutions Limited,2989918,803.64,Not Applicable
Department for Science Innovation & Technology,Intellectual Property Office,Department for Business Energy and Industrial Strategy,Intellectual Property Office,13/03/2024,Pay Costs,PDTM Directorate,Alexander Mann Solutions Limited,2989919,803.64,Not Applicable
Department for Science Innovation & Technology,Intellectual Property Office,Department for Business Energy and Industrial Strategy,Intellectual Property Office,13/03/2024,Pay Costs,PDTM Directorate,Alexander Mann Solutions Limited,2989920,1014.66,Not Applicable
Department for Science Innovation & Technology,Intellectual Property Office,Department for Business Energy and Industrial Strategy,Intellectual Property Office,13/03/2024,Pay Costs,PDTM Directorate,Alexander Mann Solutions Limited,2989922,803.64,Not Applicable
Department for Science Innovation & Technology,Intellectual Property Office,Department for Business Energy and Industrial Strategy,Intellectual Property Office,13/03/2024,Pay Costs,DDaT Directorate,Alexander Mann Solutions Limited,2989923,3024.3,Not Applicable
Department for Science Innovation & Technology,Intellectual Property Office,Department for Business Energy and Industrial Strategy,Intellectual Property Office,13/03/2024,Pay Costs,DDaT Directorate,Alexander Mann Solutions Limited,2989924,3937.86,Not Applicable
Department for Science Innovation & Technology,Intellectual Property Office,Department for Business Energy and Industrial Strategy,Intellectual Property Office,13/03/2024,Pay Costs,Projects,Alexander Mann Solutions Limited,2989925,4090.44,Not Applicable
Department for Science Innovation & Technology,Intellectual Property Office,Department for Business Energy and Industrial Strategy,Intellectual Property Office,13/03/2024,Pay Costs,PDTM Directorate,Alexander Mann Solutions Limited,2989926,803.64,Not Applicable
Department for Science Innovation & Technology,Intellectual Property Office,Department for Business Energy and Industrial Strategy,Intellectual Property Office,13/03/2024,Pay Costs,Projects,Alexander Mann Solutions Limited,2989927,4003.56,Not Applicable
Department for Science Innovation & Technology,Intellectual Property Office,Department for Business Energy and Industrial Strategy,Intellectual Property Office,13/03/2024,Pay Costs,Projects,Alexander Mann Solutions Limited,2989928,3350.64,Not Applicable
Department for Science Innovation & Technology,Intellectual Property Office,Department for Business Energy and Industrial Strategy,Intellectual Property Office,13/03/2024,Pay Costs,Projects,Alexander Mann Solutions Limited,2989929,2999.7,Not Applicable
Department for Science Innovation & Technology,Intellectual Property Office,Department for Business Energy and Industrial Strategy,Intellectual Property Office,13/03/2024,Pay Costs,PDTM Directorate,Alexander Mann Solutions Limited,2989930,803.64,Not Applicable
Department for Science Innovation & Technology,Intellectual Property Office,Department for Business Energy and Industrial Strategy,Intellectual Property Office,13/03/2024,Pay Costs,DDaT Directorate,Alexander Mann Solutions Limited,2989931,5453.94,Not Applicable
Department for Science Innovation & Technology,Intellectual Property Office,Department for Business Energy and Industrial Strategy,Intellectual Property Office,13/03/2024,Pay Costs,PDTM Directorate,Alexander Mann Solutions Limited,2989933,803.64,Not Applicable
Department for Science Innovation & Technology,Intellectual Property Office,Department for Business Energy and Industrial Strategy,Intellectual Property Office,13/03/2024,Pay Costs,PDTM Directorate,Alexander Mann Solutions Limited,2989934,803.64,Not Applicable
Department for Science Innovation & Technology,Intellectual Property Office,Department for Business Energy and Industrial Strategy,Intellectual Property Office,13/03/2024,Pay Costs,DDaT Directorate,Alexander Mann Solutions Limited,2989935,7206.41,Not Applicable
Department for Science Innovation & Technology,Intellectual Property Office,Department for Business Energy and Industrial Strategy,Intellectual Property Office,13/03/2024,Pay Costs,DDaT Directorate,Alexander Mann Solutions Limited,2989936,4725.42,Not Applicable
Department for Science Innovation & Technology,Intellectual Property Office,Department for Business Energy and Industrial Strategy,Intellectual Property Office,13/03/2024,Pay Costs,PDTM Directorate,Alexander Mann Solutions Limited,2989937,803.64,Not Applicable
Department for Science Innovation & Technology,Intellectual Property Office,Department for Business Energy and Industrial Strategy,Intellectual Property Office,13/03/2024,Pay Costs,PDTM Directorate,Alexander Mann Solutions Limited,2989938,803.64,Not Applicable
Department for Science Innovation & Technology,Intellectual Property Office,Department for Business Energy and Industrial Strategy,Intellectual Property Office,13/03/2024,Pay Costs,PDTM Directorate,Alexander Mann Solutions Limited,2989939,831.24,Not Applicable
Department for Science Innovation & Technology,Intellectual Property Office,Department for Business Energy and Industrial Strategy,Intellectual Property Office,13/03/2024,Pay Costs,PDTM Directorate,Alexander Mann Solutions Limited,2989940,831.24,Not Applicable
Department for Science Innovation & Technology,Intellectual Property Office,Department for Business Energy and Industrial Strategy,Intellectual Property Office,13/03/2024,Pay Costs,PDTM Directorate,Alexander Mann Solutions Limited,2989941,831.24,Not Applicable
Department for Science Innovation & Technology,Intellectual Property Office,Department for Business Energy and Industrial Strategy,Intellectual Property Office,13/03/2024,Pay Costs,PDTM Directorate,Alexander Mann Solutions Limited,2989942,576.04,Not Applicable
Department for Science Innovation & Technology,Intellectual Property Office,Department for Business Energy and Industrial Strategy,Intellectual Property Office,13/03/2024,Pay Costs,PDTM Directorate,Alexander Mann Solutions Limited,2989943,831.24,Not Applicable
Department for Science Innovation & Technology,Intellectual Property Office,Department for Business Energy and Industrial Strategy,Intellectual Property Office,13/03/2024,Pay Costs,PDTM Directorate,Alexander Mann Solutions Limited,2989944,831.24,Not Applicable
Department for Science Innovation & Technology,Intellectual Property Office,Department for Business Energy and Industrial Strategy,Intellectual Property Office,13/03/2024,Pay Costs,PDTM Directorate,Alexander Mann Solutions Limited,2989946,668.34,Not Applicable
Department for Science Innovation & Technology,Intellectual Property Office,Department for Business Energy and Industrial Strategy,Intellectual Property Office,13/03/2024,Pay Costs,PDTM Directorate,Alexander Mann Solutions Limited,2989947,831.24,Not Applicable
Department for Science Innovation & Technology,Intellectual Property Office,Department for Business Energy and Industrial Strategy,Intellectual Property Office,13/03/2024,Pay Costs,PDTM Directorate,Alexander Mann Solutions Limited,2989948,803.64,Not Applicable
Department for Science Innovation & Technology,Intellectual Property Office,Department for Business Energy and Industrial Strategy,Intellectual Property Office,13/03/2024,Pay Costs,Projects,Alexander Mann Solutions Limited,2989949,4095.36,Not Applicable
Department for Science Innovation & Technology,Intellectual Property Office,Department for Business Energy and Industrial Strategy,Intellectual Property Office,20/03/2024,Pay Costs,PDTM Directorate,Alexander Mann Solutions Limited,2994409,747.25,Not Applicable
Department for Science Innovation & Technology,Intellectual Property Office,Department for Business Energy and Industrial Strategy,Intellectual Property Office,20/03/2024,Pay Costs,PDTM Directorate,Alexander Mann Solutions Limited,2994410,803.64,Not Applicable
Department for Science Innovation & Technology,Intellectual Property Office,Department for Business Energy and Industrial Strategy,Intellectual Property Office,20/03/2024,Pay Costs,PDTM Directorate,Alexander Mann Solutions Limited,2994411,803.64,Not Applicable
Department for Science Innovation & Technology,Intellectual Property Office,Department for Business Energy and Industrial Strategy,Intellectual Property Office,22/03/2024,Pay Costs,PDTM Directorate,Alexander Mann Solutions Limited,2994412,803.64,Not Applicable
Department for Science Innovation & Technology,Intellectual Property Office,Department for Business Energy and Industrial Strategy,Intellectual Property Office,20/03/2024,Pay Costs,PDTM Directorate,Alexander Mann Solutions Limited,2994413,662.46,Not Applicable
Department for Science Innovation & Technology,Intellectual Property Office,Department for Business Energy and Industrial Strategy,Intellectual Property Office,20/03/2024,Pay Costs,PDTM Directorate,Alexander Mann Solutions Limited,2994414,635.32,Not Applicable
Department for Science Innovation & Technology,Intellectual Property Office,Department for Business Energy and Industrial Strategy,Intellectual Property Office,20/03/2024,Pay Costs,PDTM Directorate,Alexander Mann Solutions Limited,2994415,651.6,Not Applicable
Department for Science Innovation & Technology,Intellectual Property Office,Department for Business Energy and Industrial Strategy,Intellectual Property Office,20/03/2024,Pay Costs,PDTM Directorate,Alexander Mann Solutions Limited,2994416,619.02,Not Applicable
Department for Science Innovation & Technology,Intellectual Property Office,Department for Business Energy and Industrial Strategy,Intellectual Property Office,19/03/2024,Pay Costs,PDTM Directorate,Alexander Mann Solutions Limited,2994417,1139.17,Not Applicable
Department for Science Innovation & Technology,Intellectual Property Office,Department for Business Energy and Industrial Strategy,Intellectual Property Office,20/03/2024,Pay Costs,DDaT Directorate,Alexander Mann Solutions Limited,2994418,4431.36,Not Applicable
Department for Science Innovation & Technology,Intellectual Property Office,Department for Business Energy and Industrial Strategy,Intellectual Property Office,20/03/2024,Pay Costs,PDTM Directorate,Alexander Mann Solutions Limited,2994419,803.64,Not Applicable
Department for Science Innovation & Technology,Intellectual Property Office,Department for Business Energy and Industrial Strategy,Intellectual Property Office,20/03/2024,Pay Costs,PDTM Directorate,Alexander Mann Solutions Limited,2994420,803.64,Not Applicable
Department for Science Innovation & Technology,Intellectual Property Office,Department for Business Energy and Industrial Strategy,Intellectual Property Office,20/03/2024,Pay Costs,PDTM Directorate,Alexander Mann Solutions Limited,2994421,738.48,Not Applicable
Department for Science Innovation & Technology,Intellectual Property Office,Department for Business Energy and Industrial Strategy,Intellectual Property Office,20/03/2024,Pay Costs,PDTM Directorate,Alexander Mann Solutions Limited,2994422,803.64,Not Applicable
Department for Science Innovation & Technology,Intellectual Property Office,Department for Business Energy and Industrial Strategy,Intellectual Property Office,20/03/2024,Pay Costs,PDTM Directorate,Alexander Mann Solutions Limited,2994423,803.64,Not Applicable
Department for Science Innovation & Technology,Intellectual Property Office,Department for Business Energy and Industrial Strategy,Intellectual Property Office,20/03/2024,Pay Costs,PDTM Directorate,Alexander Mann Solutions Limited,2994424,595.79,Not Applicable
Department for Science Innovation & Technology,Intellectual Property Office,Department for Business Energy and Industrial Strategy,Intellectual Property Office,20/03/2024,Pay Costs,PDTM Directorate,Alexander Mann Solutions Limited,2994425,939.4,Not Applicable
Department for Science Innovation & Technology,Intellectual Property Office,Department for Business Energy and Industrial Strategy,Intellectual Property Office,20/03/2024,Pay Costs,PDTM Directorate,Alexander Mann Solutions Limited,2994426,1119.58,Not Applicable
Department for Science Innovation & Technology,Intellectual Property Office,Department for Business Energy and Industrial Strategy,Intellectual Property Office,20/03/2024,Pay Costs,PDTM Directorate,Alexander Mann Solutions Limited,2994427,651.6,Not Applicable
Department for Science Innovation & Technology,Intellectual Property Office,Department for Business Energy and Industrial Strategy,Intellectual Property Office,20/03/2024,Pay Costs,PDTM Directorate,Alexander Mann Solutions Limited,2994428,713.95,Not Applicable
Department for Science Innovation & Technology,Intellectual Property Office,Department for Business Energy and Industrial Strategy,Intellectual Property Office,20/03/2024,Pay Costs,PDTM Directorate,Alexander Mann Solutions Limited,2994429,803.64,Not Applicable
Department for Science Innovation & Technology,Intellectual Property Office,Department for Business Energy and Industrial Strategy,Intellectual Property Office,20/03/2024,Pay Costs,PDTM Directorate,Alexander Mann Solutions Limited,2994432,803.64,Not Applicable
Department for Science Innovation & Technology,Intellectual Property Office,Department for Business Energy and Industrial Strategy,Intellectual Property Office,20/03/2024,Pay Costs,DDaT Directorate,Alexander Mann Solutions Limited,2994434,3695.58,Not Applicable
Department for Science Innovation & Technology,Intellectual Property Office,Department for Business Energy and Industrial Strategy,Intellectual Property Office,20/03/2024,Pay Costs,PDTM Directorate,Alexander Mann Solutions Limited,2994435,651.6,Not Applicable
Department for Science Innovation & Technology,Intellectual Property Office,Department for Business Energy and Industrial Strategy,Intellectual Property Office,20/03/2024,Pay Costs,PDTM Directorate,Alexander Mann Solutions Limited,2994437,1056.86,Not Applicable
Department for Science Innovation & Technology,Intellectual Property Office,Department for Business Energy and Industrial Strategy,Intellectual Property Office,20/03/2024,Pay Costs,PDTM Directorate,Alexander Mann Solutions Limited,2994438,713.95,Not Applicable
Department for Science Innovation & Technology,Intellectual Property Office,Department for Business Energy and Industrial Strategy,Intellectual Property Office,20/03/2024,Pay Costs,PDTM Directorate,Alexander Mann Solutions Limited,2994439,803.64,Not Applicable
Department for Science Innovation & Technology,Intellectual Property Office,Department for Business Energy and Industrial Strategy,Intellectual Property Office,20/03/2024,Pay Costs,PDTM Directorate,Alexander Mann Solutions Limited,2994440,803.64,Not Applicable
Department for Science Innovation & Technology,Intellectual Property Office,Department for Business Energy and Industrial Strategy,Intellectual Property Office,20/03/2024,Pay Costs,PDTM Directorate,Alexander Mann Solutions Limited,2994441,713.95,Not Applicable
Department for Science Innovation & Technology,Intellectual Property Office,Department for Business Energy and Industrial Strategy,Intellectual Property Office,20/03/2024,Pay Costs,DDaT Directorate,Alexander Mann Solutions Limited,2994442,4410.42,Not Applicable
Department for Science Innovation & Technology,Intellectual Property Office,Department for Business Energy and Industrial Strategy,Intellectual Property Office,20/03/2024,Pay Costs,PDTM Directorate,Alexander Mann Solutions Limited,2994443,803.64,Not Applicable
Department for Science Innovation & Technology,Intellectual Property Office,Department for Business Energy and Industrial Strategy,Intellectual Property Office,20/03/2024,Pay Costs,DDaT Directorate,Alexander Mann Solutions Limited,2994444,2710.08,Not Applicable
Department for Science Innovation & Technology,Intellectual Property Office,Department for Business Energy and Industrial Strategy,Intellectual Property Office,20/03/2024,Pay Costs,DDaT Directorate,Alexander Mann Solutions Limited,2994445,3216.12,Not Applicable
Department for Science Innovation & Technology,Intellectual Property Office,Department for Business Energy and Industrial Strategy,Intellectual Property Office,20/03/2024,Pay Costs,PDTM Directorate,Alexander Mann Solutions Limited,2994446,747.25,Not Applicable
Department for Science Innovation & Technology,Intellectual Property Office,Department for Business Energy and Industrial Strategy,Intellectual Property Office,20/03/2024,Pay Costs,PDTM Directorate,Alexander Mann Solutions Limited,2994447,1139.17,Not Applicable
Department for Science Innovation & Technology,Intellectual Property Office,Department for Business Energy and Industrial Strategy,Intellectual Property Office,20/03/2024,Pay Costs,DDaT Directorate,Alexander Mann Solutions Limited,2994448,2795.4,Not Applicable
Department for Science Innovation & Technology,Intellectual Property Office,Department for Business Energy and Industrial Strategy,Intellectual Property Office,20/03/2024,Pay Costs,PDTM Directorate,Alexander Mann Solutions Limited,2994449,803.64,Not Applicable
Department for Science Innovation & Technology,Intellectual Property Office,Department for Business Energy and Industrial Strategy,Intellectual Property Office,20/03/2024,Pay Costs,Finance Directorate,Alexander Mann Solutions Limited,2994450,749.34,Not Applicable
Department for Science Innovation & Technology,Intellectual Property Office,Department for Business Energy and Industrial Strategy,Intellectual Property Office,20/03/2024,Pay Costs,Projects,Alexander Mann Solutions Limited,2994451,1890.17,Not Applicable
Department for Science Innovation & Technology,Intellectual Property Office,Department for Business Energy and Industrial Strategy,Intellectual Property Office,20/03/2024,Pay Costs,PDTM Directorate,Alexander Mann Solutions Limited,2994452,803.64,Not Applicable
Department for Science Innovation & Technology,Intellectual Property Office,Department for Business Energy and Industrial Strategy,Intellectual Property Office,20/03/2024,Pay Costs,PDTM Directorate,Alexander Mann Solutions Limited,2994453,803.64,Not Applicable
Department for Science Innovation & Technology,Intellectual Property Office,Department for Business Energy and Industrial Strategy,Intellectual Property Office,20/03/2024,Pay Costs,PDTM Directorate,Alexander Mann Solutions Limited,2994454,803.64,Not Applicable
Department for Science Innovation & Technology,Intellectual Property Office,Department for Business Energy and Industrial Strategy,Intellectual Property Office,20/03/2024,Pay Costs,PDTM Directorate,Alexander Mann Solutions Limited,2994455,803.64,Not Applicable
Department for Science Innovation & Technology,Intellectual Property Office,Department for Business Energy and Industrial Strategy,Intellectual Property Office,20/03/2024,Pay Costs,PDTM Directorate,Alexander Mann Solutions Limited,2994456,803.64,Not Applicable
Department for Science Innovation & Technology,Intellectual Property Office,Department for Business Energy and Industrial Strategy,Intellectual Property Office,20/03/2024,Pay Costs,DDaT Directorate,Alexander Mann Solutions Limited,2994457,3742.52,Not Applicable
Department for Science Innovation & Technology,Intellectual Property Office,Department for Business Energy and Industrial Strategy,Intellectual Property Office,20/03/2024,Pay Costs,Projects,Alexander Mann Solutions Limited,2994458,4311.54,Not Applicable
Department for Science Innovation & Technology,Intellectual Property Office,Department for Business Energy and Industrial Strategy,Intellectual Property Office,20/03/2024,Pay Costs,DDaT Directorate,Alexander Mann Solutions Limited,2994459,4465.5,Not Applicable
Department for Science Innovation & Technology,Intellectual Property Office,Department for Business Energy and Industrial Strategy,Intellectual Property Office,20/03/2024,Pay Costs,DDaT Directorate,Alexander Mann Solutions Limited,2994460,4095.36,Not Applicable
Department for Science Innovation & Technology,Intellectual Property Office,Department for Business Energy and Industrial Strategy,Intellectual Property Office,20/03/2024,Pay Costs,PDTM Directorate,Alexander Mann Solutions Limited,2994461,803.64,Not Applicable
Department for Science Innovation & Technology,Intellectual Property Office,Department for Business Energy and Industrial Strategy,Intellectual Property Office,20/03/2024,Pay Costs,PDTM Directorate,Alexander Mann Solutions Limited,2994462,781.92,Not Applicable
Department for Science Innovation & Technology,Intellectual Property Office,Department for Business Energy and Industrial Strategy,Intellectual Property Office,20/03/2024,Pay Costs,"Rights, Policy & Enforcement Directorate",Alexander Mann Solutions Limited,2994463,803.64,Not Applicable
Department for Science Innovation & Technology,Intellectual Property Office,Department for Business Energy and Industrial Strategy,Intellectual Property Office,20/03/2024,Pay Costs,PDTM Directorate,Alexander Mann Solutions Limited,2994464,803.64,Not Applicable
Department for Science Innovation & Technology,Intellectual Property Office,Department for Business Energy and Industrial Strategy,Intellectual Property Office,20/03/2024,Pay Costs,PDTM Directorate,Alexander Mann Solutions Limited,2994465,803.64,Not Applicable
Department for Science Innovation & Technology,Intellectual Property Office,Department for Business Energy and Industrial Strategy,Intellectual Property Office,20/03/2024,Pay Costs,PDTM Directorate,Alexander Mann Solutions Limited,2994466,803.64,Not Applicable
Department for Science Innovation & Technology,Intellectual Property Office,Department for Business Energy and Industrial Strategy,Intellectual Property Office,20/03/2024,Pay Costs,"Rights, Policy & Enforcement Directorate",Alexander Mann Solutions Limited,2994467,803.64,Not Applicable
Department for Science Innovation & Technology,Intellectual Property Office,Department for Business Energy and Industrial Strategy,Intellectual Property Office,20/03/2024,Pay Costs,PDTM Directorate,Alexander Mann Solutions Limited,2994468,4095.36,Not Applicable
Department for Science Innovation & Technology,Intellectual Property Office,Department for Business Energy and Industrial Strategy,Intellectual Property Office,20/03/2024,Pay Costs,PDTM Directorate,Alexander Mann Solutions Limited,2994469,803.64,Not Applicable
Department for Science Innovation & Technology,Intellectual Property Office,Department for Business Energy and Industrial Strategy,Intellectual Property Office,20/03/2024,Pay Costs,PDTM Directorate,Alexander Mann Solutions Limited,2994470,803.64,Not Applicable
Department for Science Innovation & Technology,Intellectual Property Office,Department for Business Energy and Industrial Strategy,Intellectual Property Office,20/03/2024,Pay Costs,PDTM Directorate,Alexander Mann Solutions Limited,2994471,809.08,Not Applicable
Department for Science Innovation & Technology,Intellectual Property Office,Department for Business Energy and Industrial Strategy,Intellectual Property Office,20/03/2024,Pay Costs,PDTM Directorate,Alexander Mann Solutions Limited,2994472,803.64,Not Applicable
Department for Science Innovation & Technology,Intellectual Property Office,Department for Business Energy and Industrial Strategy,Intellectual Property Office,20/03/2024,Pay Costs,DDaT Directorate,Alexander Mann Solutions Limited,2994473,3024.3,Not Applicable
Department for Science Innovation & Technology,Intellectual Property Office,Department for Business Energy and Industrial Strategy,Intellectual Property Office,20/03/2024,Pay Costs,DDaT Directorate,Alexander Mann Solutions Limited,2994474,3937.86,Not Applicable
Department for Science Innovation & Technology,Intellectual Property Office,Department for Business Energy and Industrial Strategy,Intellectual Property Office,20/03/2024,Pay Costs,Projects,Alexander Mann Solutions Limited,2994475,4090.44,Not Applicable
Department for Science Innovation & Technology,Intellectual Property Office,Department for Business Energy and Industrial Strategy,Intellectual Property Office,20/03/2024,Pay Costs,PDTM Directorate,Alexander Mann Solutions Limited,2994476,803.64,Not Applicable
Department for Science Innovation & Technology,Intellectual Property Office,Department for Business Energy and Industrial Strategy,Intellectual Property Office,20/03/2024,Pay Costs,Projects,Alexander Mann Solutions Limited,2994477,4003.56,Not Applicable
Department for Science Innovation & Technology,Intellectual Property Office,Department for Business Energy and Industrial Strategy,Intellectual Property Office,20/03/2024,Pay Costs,Projects,Alexander Mann Solutions Limited,2994478,3350.64,Not Applicable
Department for Science Innovation & Technology,Intellectual Property Office,Department for Business Energy and Industrial Strategy,Intellectual Property Office,20/03/2024,Pay Costs,Projects,Alexander Mann Solutions Limited,2994479,2999.7,Not Applicable
Department for Science Innovation & Technology,Intellectual Property Office,Department for Business Energy and Industrial Strategy,Intellectual Property Office,20/03/2024,Pay Costs,PDTM Directorate,Alexander Mann Solutions Limited,2994480,1225.68,Not Applicable
Department for Science Innovation & Technology,Intellectual Property Office,Department for Business Energy and Industrial Strategy,Intellectual Property Office,20/03/2024,Pay Costs,DDaT Directorate,Alexander Mann Solutions Limited,2994481,4619.52,Not Applicable
Department for Science Innovation & Technology,Intellectual Property Office,Department for Business Energy and Industrial Strategy,Intellectual Property Office,20/03/2024,Pay Costs,PDTM Directorate,Alexander Mann Solutions Limited,2994482,803.64,Not Applicable
Department for Science Innovation & Technology,Intellectual Property Office,Department for Business Energy and Industrial Strategy,Intellectual Property Office,20/03/2024,Pay Costs,PDTM Directorate,Alexander Mann Solutions Limited,2994483,803.64,Not Applicable
Department for Science Innovation & Technology,Intellectual Property Office,Department for Business Energy and Industrial Strategy,Intellectual Property Office,20/03/2024,Pay Costs,DDaT Directorate,Alexander Mann Solutions Limited,2994484,3202.85,Not Applicable
Department for Science Innovation & Technology,Intellectual Property Office,Department for Business Energy and Industrial Strategy,Intellectual Property Office,20/03/2024,Pay Costs,DDaT Directorate,Alexander Mann Solutions Limited,2994485,4725.42,Not Applicable
Department for Science Innovation & Technology,Intellectual Property Office,Department for Business Energy and Industrial Strategy,Intellectual Property Office,20/03/2024,Pay Costs,PDTM Directorate,Alexander Mann Solutions Limited,2994487,803.64,Not Applicable
Department for Science Innovation & Technology,Intellectual Property Office,Department for Business Energy and Industrial Strategy,Intellectual Property Office,20/03/2024,Pay Costs,PDTM Directorate,Alexander Mann Solutions Limited,2994488,803.64,Not Applicable
Department for Science Innovation & Technology,Intellectual Property Office,Department for Business Energy and Industrial Strategy,Intellectual Property Office,20/03/2024,Pay Costs,PDTM Directorate,Alexander Mann Solutions Limited,2994489,803.64,Not Applicable
Department for Science Innovation & Technology,Intellectual Property Office,Department for Business Energy and Industrial Strategy,Intellectual Property Office,20/03/2024,Pay Costs,PDTM Directorate,Alexander Mann Solutions Limited,2994490,803.64,Not Applicable
Department for Science Innovation & Technology,Intellectual Property Office,Department for Business Energy and Industrial Strategy,Intellectual Property Office,20/03/2024,Pay Costs,PDTM Directorate,Alexander Mann Solutions Limited,2994491,803.64,Not Applicable
Department for Science Innovation & Technology,Intellectual Property Office,Department for Business Energy and Industrial Strategy,Intellectual Property Office,20/03/2024,Pay Costs,PDTM Directorate,Alexander Mann Solutions Limited,2994492,803.64,Not Applicable
Department for Science Innovation & Technology,Intellectual Property Office,Department for Business Energy and Industrial Strategy,Intellectual Property Office,20/03/2024,Pay Costs,PDTM Directorate,Alexander Mann Solutions Limited,2994493,803.64,Not Applicable
Department for Science Innovation & Technology,Intellectual Property Office,Department for Business Energy and Industrial Strategy,Intellectual Property Office,20/03/2024,Pay Costs,PDTM Directorate,Alexander Mann Solutions Limited,2994494,2421.78,Not Applicable
Department for Science Innovation & Technology,Intellectual Property Office,Department for Business Energy and Industrial Strategy,Intellectual Property Office,20/03/2024,Pay Costs,PDTM Directorate,Alexander Mann Solutions Limited,2994496,803.64,Not Applicable
Department for Science Innovation & Technology,Intellectual Property Office,Department for Business Energy and Industrial Strategy,Intellectual Property Office,20/03/2024,Pay Costs,PDTM Directorate,Alexander Mann Solutions Limited,2994497,831.24,Not Applicable
Department for Science Innovation & Technology,Intellectual Property Office,Department for Business Energy and Industrial Strategy,Intellectual Property Office,20/03/2024,Pay Costs,PDTM Directorate,Alexander Mann Solutions Limited,2994498,831.24,Not Applicable
Department for Science Innovation & Technology,Intellectual Property Office,Department for Business Energy and Industrial Strategy,Intellectual Property Office,27/03/2024,Pay Costs,PDTM Directorate,Alexander Mann Solutions Limited,2998784,7371.65,Not Applicable
Department for Science Innovation & Technology,Intellectual Property Office,Department for Business Energy and Industrial Strategy,Intellectual Property Office,27/03/2024,Pay Costs,PDTM Directorate,Alexander Mann Solutions Limited,2998785,760.2,Not Applicable
Department for Science Innovation & Technology,Intellectual Property Office,Department for Business Energy and Industrial Strategy,Intellectual Property Office,27/03/2024,Pay Costs,PDTM Directorate,Alexander Mann Solutions Limited,2998786,747.25,Not Applicable
Department for Science Innovation & Technology,Intellectual Property Office,Department for Business Energy and Industrial Strategy,Intellectual Property Office,28/03/2024,Pay Costs,PDTM Directorate,Alexander Mann Solutions Limited,2998787,754.78,Not Applicable
Department for Science Innovation & Technology,Intellectual Property Office,Department for Business Energy and Industrial Strategy,Intellectual Property Office,28/03/2024,Pay Costs,PDTM Directorate,Alexander Mann Solutions Limited,2998788,651.6,Not Applicable
Department for Science Innovation & Technology,Intellectual Property Office,Department for Business Energy and Industrial Strategy,Intellectual Property Office,28/03/2024,Pay Costs,PDTM Directorate,Alexander Mann Solutions Limited,2998789,798.22,Not Applicable
Department for Science Innovation & Technology,Intellectual Property Office,Department for Business Energy and Industrial Strategy,Intellectual Property Office,28/03/2024,Pay Costs,DDaT Directorate,Alexander Mann Solutions Limited,2998790,15971.9,Not Applicable
Department for Science Innovation & Technology,Intellectual Property Office,Department for Business Energy and Industrial Strategy,Intellectual Property Office,28/03/2024,Pay Costs,DDaT Directorate,Alexander Mann Solutions Limited,2998791,4003.56,Not Applicable
Department for Science Innovation & Technology,Intellectual Property Office,Department for Business Energy and Industrial Strategy,Intellectual Property Office,27/03/2024,Pay Costs,DDaT Directorate,Alexander Mann Solutions Limited,2998792,6930.6,Not Applicable
Department for Science Innovation & Technology,Intellectual Property Office,Department for Business Energy and Industrial Strategy,Intellectual Property Office,27/03/2024,Pay Costs,DDaT Directorate,Alexander Mann Solutions Limited,2998793,4431.36,Not Applicable
Department for Science Innovation & Technology,Intellectual Property Office,Department for Business Energy and Industrial Strategy,Intellectual Property Office,27/03/2024,Pay Costs,PDTM Directorate,Alexander Mann Solutions Limited,2998794,803.64,Not Applicable
Department for Science Innovation & Technology,Intellectual Property Office,Department for Business Energy and Industrial Strategy,Intellectual Property Office,27/03/2024,Pay Costs,PDTM Directorate,Alexander Mann Solutions Limited,2998796,803.64,Not Applicable
Department for Science Innovation & Technology,Intellectual Property Office,Department for Business Energy and Industrial Strategy,Intellectual Property Office,27/03/2024,Pay Costs,PDTM Directorate,Alexander Mann Solutions Limited,2998797,803.64,Not Applicable
Department for Science Innovation & Technology,Intellectual Property Office,Department for Business Energy and Industrial Strategy,Intellectual Property Office,27/03/2024,Pay Costs,PDTM Directorate,Alexander Mann Solutions Limited,2998798,803.64,Not Applicable
Department for Science Innovation & Technology,Intellectual Property Office,Department for Business Energy and Industrial Strategy,Intellectual Property Office,28/03/2024,Pay Costs,PDTM Directorate,Alexander Mann Solutions Limited,2998799,1539,Not Applicable
Department for Science Innovation & Technology,Intellectual Property Office,Department for Business Energy and Industrial Strategy,Intellectual Property Office,28/03/2024,Pay Costs,PDTM Directorate,Alexander Mann Solutions Limited,2998800,1259.76,Not Applicable
Department for Science Innovation & Technology,Intellectual Property Office,Department for Business Energy and Industrial Strategy,Intellectual Property Office,27/03/2024,Pay Costs,PDTM Directorate,Alexander Mann Solutions Limited,2998801,1444.38,Not Applicable
Department for Science Innovation & Technology,Intellectual Property Office,Department for Business Energy and Industrial Strategy,Intellectual Property Office,27/03/2024,Pay Costs,PDTM Directorate,Alexander Mann Solutions Limited,2998802,747.25,Not Applicable
Department for Science Innovation & Technology,Intellectual Property Office,Department for Business Energy and Industrial Strategy,Intellectual Property Office,27/03/2024,Pay Costs,PDTM Directorate,Alexander Mann Solutions Limited,2998803,651.6,Not Applicable
Department for Science Innovation & Technology,Intellectual Property Office,Department for Business Energy and Industrial Strategy,Intellectual Property Office,27/03/2024,Pay Costs,PDTM Directorate,Alexander Mann Solutions Limited,2998804,713.95,Not Applicable
Department for Science Innovation & Technology,Intellectual Property Office,Department for Business Energy and Industrial Strategy,Intellectual Property Office,27/03/2024,Pay Costs,PDTM Directorate,Alexander Mann Solutions Limited,2998806,803.64,Not Applicable
Department for Science Innovation & Technology,Intellectual Property Office,Department for Business Energy and Industrial Strategy,Intellectual Property Office,27/03/2024,Pay Costs,PDTM Directorate,Alexander Mann Solutions Limited,2998807,803.64,Not Applicable
Department for Science Innovation & Technology,Intellectual Property Office,Department for Business Energy and Industrial Strategy,Intellectual Property Office,27/03/2024,Pay Costs,DDaT Directorate,Alexander Mann Solutions Limited,2998808,3695.58,Not Applicable
Department for Science Innovation & Technology,Intellectual Property Office,Department for Business Energy and Industrial Strategy,Intellectual Property Office,27/03/2024,Pay Costs,PDTM Directorate,Alexander Mann Solutions Limited,2998809,651.6,Not Applicable
Department for Science Innovation & Technology,Intellectual Property Office,Department for Business Energy and Industrial Strategy,Intellectual Property Office,27/03/2024,Pay Costs,PDTM Directorate,Alexander Mann Solutions Limited,2998810,803.64,Not Applicable
Department for Science Innovation & Technology,Intellectual Property Office,Department for Business Energy and Industrial Strategy,Intellectual Property Office,27/03/2024,Pay Costs,PDTM Directorate,Alexander Mann Solutions Limited,2998811,713.95,Not Applicable
Department for Science Innovation & Technology,Intellectual Property Office,Department for Business Energy and Industrial Strategy,Intellectual Property Office,27/03/2024,Pay Costs,PDTM Directorate,Alexander Mann Solutions Limited,2998812,803.64,Not Applicable
Department for Science Innovation & Technology,Intellectual Property Office,Department for Business Energy and Industrial Strategy,Intellectual Property Office,27/03/2024,Pay Costs,PDTM Directorate,Alexander Mann Solutions Limited,2998813,803.64,Not Applicable
Department for Science Innovation & Technology,Intellectual Property Office,Department for Business Energy and Industrial Strategy,Intellectual Property Office,27/03/2024,Pay Costs,PDTM Directorate,Alexander Mann Solutions Limited,2998814,578.88,Not Applicable
Department for Science Innovation & Technology,Intellectual Property Office,Department for Business Energy and Industrial Strategy,Intellectual Property Office,27/03/2024,Pay Costs,DDaT Directorate,Alexander Mann Solutions Limited,2998815,4410.42,Not Applicable
Department for Science Innovation & Technology,Intellectual Property Office,Department for Business Energy and Industrial Strategy,Intellectual Property Office,27/03/2024,Pay Costs,PDTM Directorate,Alexander Mann Solutions Limited,2998816,803.64,Not Applicable
Department for Science Innovation & Technology,Intellectual Property Office,Department for Business Energy and Industrial Strategy,Intellectual Property Office,27/03/2024,Pay Costs,DDaT Directorate,Alexander Mann Solutions Limited,2998817,2710.08,Not Applicable
Department for Science Innovation & Technology,Intellectual Property Office,Department for Business Energy and Industrial Strategy,Intellectual Property Office,27/03/2024,Pay Costs,DDaT Directorate,Alexander Mann Solutions Limited,2998818,3216.12,Not Applicable
Department for Science Innovation & Technology,Intellectual Property Office,Department for Business Energy and Industrial Strategy,Intellectual Property Office,27/03/2024,Pay Costs,PDTM Directorate,Alexander Mann Solutions Limited,2998819,747.25,Not Applicable
Department for Science Innovation & Technology,Intellectual Property Office,Department for Business Energy and Industrial Strategy,Intellectual Property Office,27/03/2024,Pay Costs,PDTM Directorate,Alexander Mann Solutions Limited,2998820,747.25,Not Applicable
Department for Science Innovation & Technology,Intellectual Property Office,Department for Business Energy and Industrial Strategy,Intellectual Property Office,27/03/2024,Pay Costs,DDaT Directorate,Alexander Mann Solutions Limited,2998821,2795.4,Not Applicable
Department for Science Innovation & Technology,Intellectual Property Office,Department for Business Energy and Industrial Strategy,Intellectual Property Office,27/03/2024,Pay Costs,Finance Directorate,Alexander Mann Solutions Limited,2998822,771.06,Not Applicable
Department for Science Innovation & Technology,Intellectual Property Office,Department for Business Energy and Industrial Strategy,Intellectual Property Office,27/03/2024,Pay Costs,PDTM Directorate,Alexander Mann Solutions Limited,2998823,803.64,Not Applicable
Department for Science Innovation & Technology,Intellectual Property Office,Department for Business Energy and Industrial Strategy,Intellectual Property Office,27/03/2024,Pay Costs,PDTM Directorate,Alexander Mann Solutions Limited,2998824,803.64,Not Applicable
Department for Science Innovation & Technology,Intellectual Property Office,Department for Business Energy and Industrial Strategy,Intellectual Property Office,27/03/2024,Pay Costs,PDTM Directorate,Alexander Mann Solutions Limited,2998825,651.6,Not Applicable
Department for Science Innovation & Technology,Intellectual Property Office,Department for Business Energy and Industrial Strategy,Intellectual Property Office,27/03/2024,Pay Costs,PDTM Directorate,Alexander Mann Solutions Limited,2998827,803.64,Not Applicable
Department for Science Innovation & Technology,Intellectual Property Office,Department for Business Energy and Industrial Strategy,Intellectual Property Office,27/03/2024,Pay Costs,DDaT Directorate,Alexander Mann Solutions Limited,2998828,4158.36,Not Applicable
Department for Science Innovation & Technology,Intellectual Property Office,Department for Business Energy and Industrial Strategy,Intellectual Property Office,27/03/2024,Pay Costs,DDaT Directorate,Alexander Mann Solutions Limited,2998829,8931,Not Applicable
Department for Science Innovation & Technology,Intellectual Property Office,Department for Business Energy and Industrial Strategy,Intellectual Property Office,27/03/2024,Pay Costs,PDTM Directorate,Alexander Mann Solutions Limited,2998830,803.64,Not Applicable
Department for Science Innovation & Technology,Intellectual Property Office,Department for Business Energy and Industrial Strategy,Intellectual Property Office,27/03/2024,Pay Costs,PDTM Directorate,Alexander Mann Solutions Limited,2998831,803.64,Not Applicable
Department for Science Innovation & Technology,Intellectual Property Office,Department for Business Energy and Industrial Strategy,Intellectual Property Office,27/03/2024,Pay Costs,"Rights, Policy & Enforcement Directorate",Alexander Mann Solutions Limited,2998832,803.64,Not Applicable
Department for Science Innovation & Technology,Intellectual Property Office,Department for Business Energy and Industrial Strategy,Intellectual Property Office,27/03/2024,Pay Costs,PDTM Directorate,Alexander Mann Solutions Limited,2998833,803.64,Not Applicable
Department for Science Innovation & Technology,Intellectual Property Office,Department for Business Energy and Industrial Strategy,Intellectual Property Office,27/03/2024,Pay Costs,PDTM Directorate,Alexander Mann Solutions Limited,2998835,803.64,Not Applicable
Department for Science Innovation & Technology,Intellectual Property Office,Department for Business Energy and Industrial Strategy,Intellectual Property Office,27/03/2024,Pay Costs,"Rights, Policy & Enforcement Directorate",Alexander Mann Solutions Limited,2998836,803.64,Not Applicable
Department for Science Innovation & Technology,Intellectual Property Office,Department for Business Energy and Industrial Strategy,Intellectual Property Office,27/03/2024,Pay Costs,PDTM Directorate,Alexander Mann Solutions Limited,2998837,2457.22,Not Applicable
Department for Science Innovation & Technology,Intellectual Property Office,Department for Business Energy and Industrial Strategy,Intellectual Property Office,27/03/2024,Pay Costs,PDTM Directorate,Alexander Mann Solutions Limited,2998838,803.64,Not Applicable
Department for Science Innovation & Technology,Intellectual Property Office,Department for Business Energy and Industrial Strategy,Intellectual Property Office,27/03/2024,Pay Costs,PDTM Directorate,Alexander Mann Solutions Limited,2998839,651.6,Not Applicable
Department for Science Innovation & Technology,Intellectual Property Office,Department for Business Energy and Industrial Strategy,Intellectual Property Office,27/03/2024,Pay Costs,PDTM Directorate,Alexander Mann Solutions Limited,2998840,809.08,Not Applicable
Department for Science Innovation & Technology,Intellectual Property Office,Department for Business Energy and Industrial Strategy,Intellectual Property Office,27/03/2024,Pay Costs,Projects,Alexander Mann Solutions Limited,2998841,628.68,Not Applicable
Department for Science Innovation & Technology,Intellectual Property Office,Department for Business Energy and Industrial Strategy,Intellectual Property Office,27/03/2024,Pay Costs,PDTM Directorate,Alexander Mann Solutions Limited,2998842,803.64,Not Applicable
Department for Science Innovation & Technology,Intellectual Property Office,Department for Business Energy and Industrial Strategy,Intellectual Property Office,27/03/2024,Pay Costs,DDaT Directorate,Alexander Mann Solutions Limited,2998843,3024.3,Not Applicable
Department for Science Innovation & Technology,Intellectual Property Office,Department for Business Energy and Industrial Strategy,Intellectual Property Office,27/03/2024,Pay Costs,DDaT Directorate,Alexander Mann Solutions Limited,2998844,3150.29,Not Applicable
Department for Science Innovation & Technology,Intellectual Property Office,Department for Business Energy and Industrial Strategy,Intellectual Property Office,27/03/2024,Pay Costs,Projects,Alexander Mann Solutions Limited,2998845,4090.44,Not Applicable
Department for Science Innovation & Technology,Intellectual Property Office,Department for Business Energy and Industrial Strategy,Intellectual Property Office,27/03/2024,Pay Costs,Projects,Alexander Mann Solutions Limited,2998846,4003.56,Not Applicable
Department for Science Innovation & Technology,Intellectual Property Office,Department for Business Energy and Industrial Strategy,Intellectual Property Office,27/03/2024,Pay Costs,Projects,Alexander Mann Solutions Limited,2998847,3350.64,Not Applicable
Department for Science Innovation & Technology,Intellectual Property Office,Department for Business Energy and Industrial Strategy,Intellectual Property Office,27/03/2024,Pay Costs,Projects,Alexander Mann Solutions Limited,2998848,2999.7,Not Applicable
Department for Science Innovation & Technology,Intellectual Property Office,Department for Business Energy and Industrial Strategy,Intellectual Property Office,27/03/2024,Pay Costs,PDTM Directorate,Alexander Mann Solutions Limited,2998849,803.64,Not Applicable
Department for Science Innovation & Technology,Intellectual Property Office,Department for Business Energy and Industrial Strategy,Intellectual Property Office,27/03/2024,Pay Costs,DDaT Directorate,Alexander Mann Solutions Limited,2998850,4619.52,Not Applicable
Department for Science Innovation & Technology,Intellectual Property Office,Department for Business Energy and Industrial Strategy,Intellectual Property Office,28/03/2024,Pay Costs,DDaT Directorate,Alexander Mann Solutions Limited,2998851,10907.88,Not Applicable
Department for Science Innovation & Technology,Intellectual Property Office,Department for Business Energy and Industrial Strategy,Intellectual Property Office,27/03/2024,Pay Costs,"Rights, Policy & Enforcement Directorate",Alexander Mann Solutions Limited,2998852,803.64,Not Applicable
Department for Science Innovation & Technology,Intellectual Property Office,Department for Business Energy and Industrial Strategy,Intellectual Property Office,27/03/2024,Pay Costs,PDTM Directorate,Alexander Mann Solutions Limited,2998853,722.2,Not Applicable
Department for Science Innovation & Technology,Intellectual Property Office,Department for Business Energy and Industrial Strategy,Intellectual Property Office,27/03/2024,Pay Costs,PDTM Directorate,Alexander Mann Solutions Limited,2998854,803.64,Not Applicable
Department for Science Innovation & Technology,Intellectual Property Office,Department for Business Energy and Industrial Strategy,Intellectual Property Office,27/03/2024,Pay Costs,DDaT Directorate,Alexander Mann Solutions Limited,2998855,1601.42,Not Applicable
Department for Science Innovation & Technology,Intellectual Property Office,Department for Business Energy and Industrial Strategy,Intellectual Property Office,27/03/2024,Pay Costs,DDaT Directorate,Alexander Mann Solutions Limited,2998856,4725.42,Not Applicable
Department for Science Innovation & Technology,Intellectual Property Office,Department for Business Energy and Industrial Strategy,Intellectual Property Office,27/03/2024,Pay Costs,PDTM Directorate,Alexander Mann Solutions Limited,2998857,803.64,Not Applicable
Department for Science Innovation & Technology,Intellectual Property Office,Department for Business Energy and Industrial Strategy,Intellectual Property Office,27/03/2024,Pay Costs,PDTM Directorate,Alexander Mann Solutions Limited,2998858,803.64,Not Applicable
Department for Science Innovation & Technology,Intellectual Property Office,Department for Business Energy and Industrial Strategy,Intellectual Property Office,27/03/2024,Pay Costs,PDTM Directorate,Alexander Mann Solutions Limited,2998859,803.64,Not Applicable
Department for Science Innovation & Technology,Intellectual Property Office,Department for Business Energy and Industrial Strategy,Intellectual Property Office,27/03/2024,Pay Costs,PDTM Directorate,Alexander Mann Solutions Limited,2998860,803.64,Not Applicable
Department for Science Innovation & Technology,Intellectual Property Office,Department for Business Energy and Industrial Strategy,Intellectual Property Office,27/03/2024,Pay Costs,PDTM Directorate,Alexander Mann Solutions Limited,2998861,803.64,Not Applicable
Department for Science Innovation & Technology,Intellectual Property Office,Department for Business Energy and Industrial Strategy,Intellectual Property Office,27/03/2024,Pay Costs,PDTM Directorate,Alexander Mann Solutions Limited,2998862,803.64,Not Applicable
Department for Science Innovation & Technology,Intellectual Property Office,Department for Business Energy and Industrial Strategy,Intellectual Property Office,27/03/2024,Pay Costs,PDTM Directorate,Alexander Mann Solutions Limited,2998863,803.64,Not Applicable
Department for Science Innovation & Technology,Intellectual Property Office,Department for Business Energy and Industrial Strategy,Intellectual Property Office,27/03/2024,Pay Costs,PDTM Directorate,Alexander Mann Solutions Limited,2998864,803.64,Not Applicable
Department for Science Innovation & Technology,Intellectual Property Office,Department for Business Energy and Industrial Strategy,Intellectual Property Office,27/03/2024,Pay Costs,PDTM Directorate,Alexander Mann Solutions Limited,2998865,803.64,Not Applicable
Department for Science Innovation & Technology,Intellectual Property Office,Department for Business Energy and Industrial Strategy,Intellectual Property Office,27/03/2024,Pay Costs,PDTM Directorate,Alexander Mann Solutions Limited,2998866,803.64,Not Applicable
Department for Science Innovation & Technology,Intellectual Property Office,Department for Business Energy and Industrial Strategy,Intellectual Property Office,27/03/2024,Pay Costs,PDTM Directorate,Alexander Mann Solutions Limited,2998867,803.64,Not Applicable
Department for Science Innovation & Technology,Intellectual Property Office,Department for Business Energy and Industrial Strategy,Intellectual Property Office,27/03/2024,Pay Costs,PDTM Directorate,Alexander Mann Solutions Limited,2998868,803.64,Not Applicable
Department for Science Innovation & Technology,Intellectual Property Office,Department for Business Energy and Industrial Strategy,Intellectual Property Office,27/03/2024,Pay Costs,PDTM Directorate,Alexander Mann Solutions Limited,2998869,651.6,Not Applicable
Department for Science Innovation & Technology,Intellectual Property Office,Department for Business Energy and Industrial Strategy,Intellectual Property Office,27/03/2024,Pay Costs,DDaT Directorate,Alexander Mann Solutions Limited,2998870,4725.42,Not Applicable
Department for Science Innovation & Technology,Intellectual Property Office,Department for Business Energy and Industrial Strategy,Intellectual Property Office,27/03/2024,Pay Costs,PDTM Directorate,Alexander Mann Solutions Limited,2998871,803.64,Not Applicable
Department for Science Innovation & Technology,Intellectual Property Office,Department for Business Energy and Industrial Strategy,Intellectual Property Office,27/03/2024,Pay Costs,PDTM Directorate,Alexander Mann Solutions Limited,2998872,803.64,Not Applicable
Department for Science Innovation & Technology,Intellectual Property Office,Department for Business Energy and Industrial Strategy,Intellectual Property Office,28/03/2024,Pay Costs,Projects,Alexander Mann Solutions Limited,2998873,8190.72,Not Applicable
Department for Science Innovation & Technology,Intellectual Property Office,Department for Business Energy and Industrial Strategy,Intellectual Property Office,20/03/2024,Pay Costs,PDTM Directorate,Alexander Mann Solutions Limited,42261,-814.5,Not Applicable
Department for Science Innovation & Technology,Intellectual Property Office,Department for Business Energy and Industrial Strategy,Intellectual Property Office,28/03/2024,Pay Costs,PDTM Directorate,Alexander Mann Solutions Limited,42377,-595.79,Not Applicable
Department for Science Innovation & Technology,Intellectual Property Office,Department for Business Energy and Industrial Strategy,Intellectual Property Office,27/03/2024,Pay Costs,PDTM Directorate,Alexander Mann Solutions Limited,42378,-629.88,Not Applicable
Department for Science Innovation & Technology,Intellectual Property Office,Department for Business Energy and Industrial Strategy,Intellectual Property Office,01/03/2024,Supporting UK Business,PDTM Directorate,Secerna LLP,25499,2500,Not Applicable
Department for Science Innovation & Technology,Intellectual Property Office,Department for Business Energy and Industrial Strategy,Intellectual Property Office,06/03/2024,Information Technology,DDaT Directorate,Cyberis Limited,INV03030,29871,Not Applicable
Department for Science Innovation & Technology,Intellectual Property Office,Department for Business Energy and Industrial Strategy,Intellectual Property Office,08/03/2024,Marketing & Publicity,Strategy Directorate,Thomas Telford Ltd,I068661,1503,Not Applicable
Department for Science Innovation & Technology,Intellectual Property Office,Department for Business Energy and Industrial Strategy,Intellectual Property Office,12/03/2024,Staff Costs,"Rights, Policy & Enforcement Directorate",Eliesha Training Ltd,24083,1074,Not Applicable
Department for Science Innovation & Technology,Intellectual Property Office,Department for Business Energy and Industrial Strategy,Intellectual Property Office,20/03/2024,Staff Costs,"Rights, Policy & Enforcement Directorate",Eliesha Training Ltd,24100,714,Not Applicable
Department for Science Innovation & Technology,Intellectual Property Office,Department for Business Energy and Industrial Strategy,Intellectual Property Office,22/03/2024,Staff Costs,"Rights, Policy & Enforcement Directorate",Eliesha Training Ltd,24106,834,Not Applicable
Department for Science Innovation & Technology,Intellectual Property Office,Department for Business Energy and Industrial Strategy,Intellectual Property Office,26/03/2024,Staff Costs,"Rights, Policy & Enforcement Directorate",Eliesha Training Ltd,24113,3336,Not Applicable
Department for Science Innovation & Technology,Intellectual Property Office,Department for Business Energy and Industrial Strategy,Intellectual Property Office,19/03/2024,Information Technology,Projects,Empyrean Digital Ltd,EMP-951,190012.8,Not Applicable
Department for Science Innovation & Technology,Intellectual Property Office,Department for Business Energy and Industrial Strategy,Intellectual Property Office,19/03/2024,Information Technology,Projects,Empyrean Digital Ltd,EMP-952,39000,Not Applicable
Department for Science Innovation & Technology,Intellectual Property Office,Department for Business Energy and Industrial Strategy,Intellectual Property Office,05/03/2024,Staff Costs,"Rights, Policy & Enforcement Directorate",Off Limits Ltd,SI-295,3060,Not Applicable
Department for Science Innovation & Technology,Intellectual Property Office,Department for Business Energy and Industrial Strategy,Intellectual Property Office,01/03/2024,Supporting UK Business,Business & International Policy Directorate,Axis12 Limited,INV-5450,1753.2,Not Applicable
Department for Science Innovation & Technology,Intellectual Property Office,Department for Business Energy and Industrial Strategy,Intellectual Property Office,26/03/2024,Supporting UK Business,PDTM Directorate,Adamson Jones IP Limited,27814,2500,Not Applicable
Department for Science Innovation & Technology,Intellectual Property Office,Department for Business Energy and Industrial Strategy,Intellectual Property Office,27/03/2024,Supporting UK Business,PDTM Directorate,Adamson Jones IP Limited,27826,2500,Not Applicable
Department for Science Innovation & Technology,Intellectual Property Office,Department for Business Energy and Industrial Strategy,Intellectual Property Office,22/03/2024,Staff Costs,PDTM Directorate,Avado Learning Limited,16861757543,2610,Not Applicable
Department for Science Innovation & Technology,Intellectual Property Office,Department for Business Energy and Industrial Strategy,Intellectual Property Office,25/03/2024,Supporting UK Business,PDTM Directorate,McDaniel & Co. Ltd T/A McDaniels Law,24348,2500,Not Applicable
Department for Science Innovation & Technology,Intellectual Property Office,Department for Business Energy and Industrial Strategy,Intellectual Property Office,08/03/2024,Information Technology,DDaT Directorate,iCoTech Group Ltd,INV-0523,6000,Not Applicable
Department for Science Innovation & Technology,Intellectual Property Office,Department for Business Energy and Industrial Strategy,Intellectual Property Office,08/03/2024,Information Technology,DDaT Directorate,iCoTech Group Ltd,INV-0532,1275,Not Applicable
Department for Science Innovation & Technology,Intellectual Property Office,Department for Business Energy and Industrial Strategy,Intellectual Property Office,20/03/2024,Information Technology,DDaT Directorate,Cloudflare Inc,CI-249266,11491.97,Not Applicable
Department for Science Innovation & Technology,Intellectual Property Office,Department for Business Energy and Industrial Strategy,Intellectual Property Office,08/03/2024,Supporting UK Business,PDTM Directorate,Panoramix Limited,INV-1608,2500,Not Applicable
Department for Science Innovation & Technology,Intellectual Property Office,Department for Business Energy and Industrial Strategy,Intellectual Property Office,04/03/2024,Supporting UK Business,PDTM Directorate,Panoramix Limited,INV-1614,2500,Not Applicable
Department for Science Innovation & Technology,Intellectual Property Office,Department for Business Energy and Industrial Strategy,Intellectual Property Office,01/03/2024,Supporting UK Business,PDTM Directorate,Panoramix Limited,INV-1617,2500,Not Applicable
Department for Science Innovation & Technology,Intellectual Property Office,Department for Business Energy and Industrial Strategy,Intellectual Property Office,28/03/2024,Supporting UK Business,PDTM Directorate,Panoramix Limited,INV-1635,2500,Not Applicable
Department for Science Innovation & Technology,Intellectual Property Office,Department for Business Energy and Industrial Strategy,Intellectual Property Office,15/03/2024,Supporting UK Business,PDTM Directorate,Panoramix Limited,INV-1649,2500,Not Applicable
Department for Science Innovation & Technology,Intellectual Property Office,Department for Business Energy and Industrial Strategy,Intellectual Property Office,26/03/2024,Supporting UK Business,PDTM Directorate,Panoramix Limited,INV-1675,2500,Not Applicable
Department for Science Innovation & Technology,Intellectual Property Office,Department for Business Energy and Industrial Strategy,Intellectual Property Office,26/03/2024,Supporting UK Business,PDTM Directorate,Panoramix Limited,INV-1677,2500,Not Applicable
Department for Science Innovation & Technology,Intellectual Property Office,Department for Business Energy and Industrial Strategy,Intellectual Property Office,26/03/2024,Supporting UK Business,PDTM Directorate,Panoramix Limited,INV-1681,2500,Not Applicable
Department for Science Innovation & Technology,Intellectual Property Office,Department for Business Energy and Industrial Strategy,Intellectual Property Office,15/03/2024,Miscellaneous Expenses General,"Rights, Policy & Enforcement Directorate",MHR International UK Ltd,SIN203327,4680,Not Applicable
Department for Science Innovation & Technology,Intellectual Property Office,Department for Business Energy and Industrial Strategy,Intellectual Property Office,20/03/2024,Other FA at Cost,DDaT Directorate,Avoira Limited,OP/I0000128619,531.85,Not Applicable
Department for Science Innovation & Technology,Intellectual Property Office,Department for Business Energy and Industrial Strategy,Intellectual Property Office,08/03/2024,Supporting UK Business,"Rights, Policy & Enforcement Directorate",The London Trading Standards Association,2615,7500,Not Applicable
Department for Science Innovation & Technology,Intellectual Property Office,Department for Business Energy and Industrial Strategy,Intellectual Property Office,04/03/2024,Supporting UK Business,PDTM Directorate,Concept IP Services Limited,INV-19340,2500,Not Applicable
Department for Science Innovation & Technology,Intellectual Property Office,Department for Business Energy and Industrial Strategy,Intellectual Property Office,27/03/2024,Supporting UK Business,Business & International Policy Directorate,Rouse & Co International (Overseas) Limi,11325094,25000,Not Applicable
Department for Science Innovation & Technology,Intellectual Property Office,Department for Business Energy and Industrial Strategy,Intellectual Property Office,28/03/2024,Supporting UK Business,PDTM Directorate,Howes Percival LLP,1057938,2307.6,Not Applicable
Department for Science Innovation & Technology,Intellectual Property Office,Department for Business Energy and Industrial Strategy,Intellectual Property Office,01/03/2024,Information Technology,DDaT Directorate,Hewlett Packard International Bank DAC,4.01E+11,18113.07,Not Applicable
Department for Science Innovation & Technology,Intellectual Property Office,Department for Business Energy and Industrial Strategy,Intellectual Property Office,01/03/2024,Information Technology,DDaT Directorate,Hewlett Packard International Bank DAC,4.01E+11,5928.45,Not Applicable
Department for Science Innovation & Technology,Intellectual Property Office,Department for Business Energy and Industrial Strategy,Intellectual Property Office,01/03/2024,Information Technology,DDaT Directorate,Hewlett Packard International Bank DAC,4.01E+11,14460.66,Not Applicable
Department for Science Innovation & Technology,Intellectual Property Office,Department for Business Energy and Industrial Strategy,Intellectual Property Office,13/03/2024,Information Technology,DDaT Directorate,Hewlett Packard International Bank DAC,4.01E+11,14683.88,Not Applicable
Department for Science Innovation & Technology,Intellectual Property Office,Department for Business Energy and Industrial Strategy,Intellectual Property Office,13/03/2024,Information Technology,DDaT Directorate,Hewlett Packard International Bank DAC,4.01E+11,14683.88,Not Applicable
Department for Science Innovation & Technology,Intellectual Property Office,Department for Business Energy and Industrial Strategy,Intellectual Property Office,20/03/2024,Information Technology,DDaT Directorate,Hewlett Packard International Bank DAC,4.01E+11,5928.45,Not Applicable
Department for Science Innovation & Technology,Intellectual Property Office,Department for Business Energy and Industrial Strategy,Intellectual Property Office,20/03/2024,Information Technology,DDaT Directorate,Hewlett Packard International Bank DAC,4.01E+11,4594.9,Not Applicable
Department for Science Innovation & Technology,Intellectual Property Office,Department for Business Energy and Industrial Strategy,Intellectual Property Office,20/03/2024,Information Technology,DDaT Directorate,Hewlett Packard International Bank DAC,4.01E+11,14460.66,Not Applicable
Department for Science Innovation & Technology,Intellectual Property Office,Department for Business Energy and Industrial Strategy,Intellectual Property Office,20/03/2024,Information Technology,DDaT Directorate,Hewlett Packard International Bank DAC,4.01E+11,14683.88,Not Applicable
Department for Science Innovation & Technology,Intellectual Property Office,Department for Business Energy and Industrial Strategy,Intellectual Property Office,20/03/2024,Information Technology,DDaT Directorate,Pure Technology Group - T/A Pure Data So,INV028161,585.6,Not Applicable
Department for Science Innovation & Technology,Intellectual Property Office,Department for Business Energy and Industrial Strategy,Intellectual Property Office,28/03/2024,Legal & Hearings,PDTM Directorate,Bristows LLP,222351,3600,Not Applicable
Department for Science Innovation & Technology,Intellectual Property Office,Department for Business Energy and Industrial Strategy,Intellectual Property Office,26/03/2024,Misc Expenses Finance,Finance Directorate,Worldpay,295768428,187446.39,Not Applicable
Department for Science Innovation & Technology,Intellectual Property Office,Department for Business Energy and Industrial Strategy,Intellectual Property Office,26/03/2024,Misc Expenses Finance,Finance Directorate,Worldpay,GM1112340,894.74,Not Applicable
Department for Science Innovation & Technology,Intellectual Property Office,Department for Business Energy and Industrial Strategy,Intellectual Property Office,01/03/2024,Pay Costs,DDaT Directorate,Talent International Holdings PTY Limite,68109,14400,Not Applicable
Department for Science Innovation & Technology,Intellectual Property Office,Department for Business Energy and Industrial Strategy,Intellectual Property Office,01/03/2024,Pay Costs,DDaT Directorate,Talent International Holdings PTY Limite,68110,12240,Not Applicable
Department for Science Innovation & Technology,Intellectual Property Office,Department for Business Energy and Industrial Strategy,Intellectual Property Office,01/03/2024,Pay Costs,Projects,Talent International Holdings PTY Limite,68111,6073.2,Not Applicable
Department for Science Innovation & Technology,Intellectual Property Office,Department for Business Energy and Industrial Strategy,Intellectual Property Office,28/03/2024,Pay Costs,"Rights, Policy & Enforcement Directorate",Edenred,1210482,28875,Not Applicable
Department for Science Innovation & Technology,Intellectual Property Office,Department for Business Energy and Industrial Strategy,Intellectual Property Office,28/03/2024,Supporting UK Business,PDTM Directorate,Edenred,1210482,650,Not Applicable
Department for Science Innovation & Technology,Intellectual Property Office,Department for Business Energy and Industrial Strategy,Intellectual Property Office,08/03/2024,Legal & Hearings,PDTM Directorate,Mills and Reeve LLP,245652,72772.44,Not Applicable
Department for Science Innovation & Technology,Intellectual Property Office,Department for Business Energy and Industrial Strategy,Intellectual Property Office,15/03/2024,Accommodation,"Rights, Policy & Enforcement Directorate",TotalEnergies Gas & Power,334170480-24,13093.46,Not Applicable
Department for Science Innovation & Technology,Intellectual Property Office,Department for Business Energy and Industrial Strategy,Intellectual Property Office,15/03/2024,Accommodation,"Rights, Policy & Enforcement Directorate",TotalEnergies Gas & Power,334170501-24,5781.19,Not Applicable
Department for Science Innovation & Technology,Intellectual Property Office,Department for Business Energy and Industrial Strategy,Intellectual Property Office,22/03/2024,Accommodation,"Rights, Policy & Enforcement Directorate",Style Door Systems,M19129,864,Not Applicable
Department for Science Innovation & Technology,Intellectual Property Office,Department for Business Energy and Industrial Strategy,Intellectual Property Office,28/03/2024,Legal & Hearings,PDTM Directorate,Martin Howe QC,65781,600,Not Applicable
Department for Science Innovation & Technology,Intellectual Property Office,Department for Business Energy and Industrial Strategy,Intellectual Property Office,28/03/2024,Legal & Hearings,PDTM Directorate,Emma Himsworth,46934,3870,Not Applicable
Department for Science Innovation & Technology,Intellectual Property Office,Department for Business Energy and Industrial Strategy,Intellectual Property Office,28/03/2024,Legal & Hearings,PDTM Directorate,Emma Himsworth,46935,1656,Not Applicable
Department for Science Innovation & Technology,Intellectual Property Office,Department for Business Energy and Industrial Strategy,Intellectual Property Office,28/03/2024,Legal & Hearings,PDTM Directorate,Emma Himsworth,46987,1260,Not Applicable
Department for Science Innovation & Technology,Intellectual Property Office,Department for Business Energy and Industrial Strategy,Intellectual Property Office,28/03/2024,Legal & Hearings,PDTM Directorate,Emma Himsworth,46988,2160,Not Applicable
Department for Science Innovation & Technology,Intellectual Property Office,Department for Business Energy and Industrial Strategy,Intellectual Property Office,28/03/2024,Legal & Hearings,PDTM Directorate,Emma Himsworth,47062,1800,Not Applicable
Department for Science Innovation & Technology,Intellectual Property Office,Department for Business Energy and Industrial Strategy,Intellectual Property Office,08/03/2024,Office Machinery,DDaT Directorate,Annodata Limited T/A Kyocera,1342169,725.04,Not Applicable
Department for Science Innovation & Technology,Intellectual Property Office,Department for Business Energy and Industrial Strategy,Intellectual Property Office,08/03/2024,Office Machinery,DDaT Directorate,Annodata Limited T/A Kyocera,1347756,5569.46,Not Applicable
Department for Science Innovation & Technology,Intellectual Property Office,Department for Business Energy and Industrial Strategy,Intellectual Property Office,08/03/2024,Office Machinery,"Rights, Policy & Enforcement Directorate",Peac Uk Ltd,006/25/0014791,1380,Not Applicable
Department for Science Innovation & Technology,Intellectual Property Office,Department for Business Energy and Industrial Strategy,Intellectual Property Office,11/03/2024,Miscellaneous Expenses General,"Rights, Policy & Enforcement Directorate",thebigword Group Ltd,80100445,563.75,Not Applicable
Department for Science Innovation & Technology,Intellectual Property Office,Department for Business Energy and Industrial Strategy,Intellectual Property Office,12/03/2024,Miscellaneous Expenses General,PDTM Directorate,thebigword Group Ltd,80100677,690,Not Applicable
Department for Science Innovation & Technology,Intellectual Property Office,Department for Business Energy and Industrial Strategy,Intellectual Property Office,27/03/2024,Staff Costs,"Rights, Policy & Enforcement Directorate",Service Management Association Ltd (trad,INV-56106,1020,Not Applicable
Department for Science Innovation & Technology,Intellectual Property Office,Department for Business Energy and Industrial Strategy,Intellectual Property Office,27/03/2024,Supporting UK Business,"Rights, Policy & Enforcement Directorate",PCC for Merseyside,304844,960,Not Applicable
Department for Science Innovation & Technology,Intellectual Property Office,Department for Business Energy and Industrial Strategy,Intellectual Property Office,22/03/2024,Supporting UK Business,PDTM Directorate,Flynn-IP,10306-24,2083,Not Applicable
Department for Science Innovation & Technology,Intellectual Property Office,Department for Business Energy and Industrial Strategy,Intellectual Property Office,26/03/2024,Marketing & Publicity,"Rights, Policy & Enforcement Directorate",Department for International Trade,6.23E+11,3600,Not Applicable
Department for Science Innovation & Technology,Intellectual Property Office,Department for Business Energy and Industrial Strategy,Intellectual Property Office,01/03/2024,Supporting UK Business,PDTM Directorate,Penningtons Manches Cooper LLP,5372716,3500,Not Applicable
Department for Science Innovation & Technology,Intellectual Property Office,Department for Business Energy and Industrial Strategy,Intellectual Property Office,15/03/2024,Legal & Hearings,"Rights, Policy & Enforcement Directorate",Penningtons Manches Cooper LLP,5398228,1200,Not Applicable
Department for Science Innovation & Technology,Intellectual Property Office,Department for Business Energy and Industrial Strategy,Intellectual Property Office,18/03/2024,Accommodation,"Rights, Policy & Enforcement Directorate",Crown Flooring Ltd,39492,22156.33,Not Applicable
Department for Science Innovation & Technology,Intellectual Property Office,Department for Business Energy and Industrial Strategy,Intellectual Property Office,22/03/2024,Supporting UK Business,PDTM Directorate,Lucidity IP Ltd,RS0161GB,2500,Not Applicable
Department for Science Innovation & Technology,Intellectual Property Office,Department for Business Energy and Industrial Strategy,Intellectual Property Office,08/03/2024,Legal & Hearings,PDTM Directorate,Dept for Science Innovation & Technology,6.18E+11,166250,Not Applicable
Department for Science Innovation & Technology,Intellectual Property Office,Department for Business Energy and Industrial Strategy,Intellectual Property Office,06/03/2024,Accommodation,"Rights, Policy & Enforcement Directorate",ISS Mediclean Limited,SI3572174,39217.63,Not Applicable
Department for Science Innovation & Technology,Intellectual Property Office,Department for Business Energy and Industrial Strategy,Intellectual Property Office,25/03/2024,Accommodation,"Rights, Policy & Enforcement Directorate",ISS Mediclean Limited,SI3575037,65915.31,Not Applicable
Department for Science Innovation & Technology,Intellectual Property Office,Department for Business Energy and Industrial Strategy,Intellectual Property Office,25/03/2024,Accommodation,"Rights, Policy & Enforcement Directorate",ISS Mediclean Limited,SI3575037,4284.83,Not Applicable
Department for Science Innovation & Technology,Intellectual Property Office,Department for Business Energy and Industrial Strategy,Intellectual Property Office,25/03/2024,Accommodation,"Rights, Policy & Enforcement Directorate",ISS Mediclean Limited,SI3575037,43374.09,Not Applicable
Department for Science Innovation & Technology,Intellectual Property Office,Department for Business Energy and Industrial Strategy,Intellectual Property Office,25/03/2024,Accommodation,"Rights, Policy & Enforcement Directorate",ISS Mediclean Limited,SI3575037,24677.99,Not Applicable
Department for Science Innovation & Technology,Intellectual Property Office,Department for Business Energy and Industrial Strategy,Intellectual Property Office,28/03/2024,Staff Costs,"Rights, Policy & Enforcement Directorate",Cognitas Global Ltd,INV-0130,27762.67,Not Applicable
Department for Science Innovation & Technology,Intellectual Property Office,Department for Business Energy and Industrial Strategy,Intellectual Property Office,05/03/2024,Marketing & Publicity,"Rights, Policy & Enforcement Directorate",Global Media Group Services Ltd,C-INV280623,1958.57,Not Applicable
Department for Science Innovation & Technology,Intellectual Property Office,Department for Business Energy and Industrial Strategy,Intellectual Property Office,13/03/2024,Information Technology,DDaT Directorate,REVVITY (UK) LIMITED,GB000673,26881.2,Not Applicable
Department for Science Innovation & Technology,Intellectual Property Office,Department for Business Energy and Industrial Strategy,Intellectual Property Office,04/03/2024,Other FA at Cost,DDaT Directorate,Digital Devices Ltd,31967,6540,Not Applicable
Department for Science Innovation & Technology,Intellectual Property Office,Department for Business Energy and Industrial Strategy,Intellectual Property Office,08/03/2024,Supporting UK Business,PDTM Directorate,IP - Arkitek Limited,1038,2500,Not Applicable
Department for Science Innovation & Technology,Intellectual Property Office,Department for Business Energy and Industrial Strategy,Intellectual Property Office,08/03/2024,Marketing & Publicity,Strategy Directorate,HOUSE OF COMMONS,100028256,3277.01,Not Applicable
Department for Science Innovation & Technology,Intellectual Property Office,Department for Business Energy and Industrial Strategy,Intellectual Property Office,06/03/2024,Supporting UK Business,PDTM Directorate,HGF Law LLP,2009436,2500,Not Applicable
Department for Science Innovation & Technology,Intellectual Property Office,Department for Business Energy and Industrial Strategy,Intellectual Property Office,08/03/2024,Supporting UK Business,PDTM Directorate,Hansel Henson Limited,INV-8654,2500,Not Applicable
Department for Science Innovation & Technology,Intellectual Property Office,Department for Business Energy and Industrial Strategy,Intellectual Property Office,27/03/2024,Supporting UK Business,PDTM Directorate,PF Legal,10306-24,2083,Not Applicable
Department for Science Innovation & Technology,Intellectual Property Office,Department for Business Energy and Industrial Strategy,Intellectual Property Office,28/03/2024,Books,DDaT Directorate,Amazon.Co.Uk,H57720240330blxnmgwnx,48.84,Not Applicable
Department for Science Innovation & Technology,Intellectual Property Office,Department for Business Energy and Industrial Strategy,Intellectual Property Office,28/03/2024,Overseas Patent Specifications,PDTM Directorate,Degruyter.Com 2142816276,H57720240330bqyksohgc,23,Not Applicable
Department for Science Innovation & Technology,Intellectual Property Office,Department for Business Energy and Industrial Strategy,Intellectual Property Office,27/03/2024,Overseas Patent Specifications,PDTM Directorate,Spie Org,H57720240330qejwsgdcm,20.62,Not Applicable
Department for Science Innovation & Technology,Intellectual Property Office,Department for Business Energy and Industrial Strategy,Intellectual Property Office,27/03/2024,Office Stationery,"Rights, Policy & Enforcement Directorate",Ppe Workwear Direct,H57720240329hqwrkwqlj,264.42,Not Applicable
Department for Science Innovation & Technology,Intellectual Property Office,Department for Business Energy and Industrial Strategy,Intellectual Property Office,27/03/2024,Office Stationery,"Rights, Policy & Enforcement Directorate",Ppe Workwear Direct,H57720240329imdggjlcb,34.99,Not Applicable
Department for Science Innovation & Technology,Intellectual Property Office,Department for Business Energy and Industrial Strategy,Intellectual Property Office,27/03/2024,Office Stationery,"Rights, Policy & Enforcement Directorate",Ppe Workwear Direct,H57720240329pgijmeunh,57.82,Not Applicable
Department for Science Innovation & Technology,Intellectual Property Office,Department for Business Energy and Industrial Strategy,Intellectual Property Office,27/03/2024,Career Development Services,Finance Directorate,Www.Cips.Org,H57720240329reqxwxgod,210,Not Applicable
Department for Science Innovation & Technology,Intellectual Property Office,Department for Business Energy and Industrial Strategy,Intellectual Property Office,27/03/2024,Office Stationery,"Rights, Policy & Enforcement Directorate",Ppe Workwear Direct,H57720240329tejieupyp,169.87,Not Applicable
Department for Science Innovation & Technology,Intellectual Property Office,Department for Business Energy and Industrial Strategy,Intellectual Property Office,26/03/2024,Office Stationery,"Rights, Policy & Enforcement Directorate",Aacme Glass Ltd,H57720240328dkucpqfyp,20,Not Applicable
Department for Science Innovation & Technology,Intellectual Property Office,Department for Business Energy and Industrial Strategy,Intellectual Property Office,26/03/2024,Office Stationery,"Rights, Policy & Enforcement Directorate",Amznmktplace,H57720240328fjbrwwdei,39,Not Applicable
Department for Science Innovation & Technology,Intellectual Property Office,Department for Business Energy and Industrial Strategy,Intellectual Property Office,26/03/2024,Office Stationery,"Rights, Policy & Enforcement Directorate",Amznmktplace,H57720240328hzxsnwtic,13.66,Not Applicable
Department for Science Innovation & Technology,Intellectual Property Office,Department for Business Energy and Industrial Strategy,Intellectual Property Office,25/03/2024,Office Stationery,"Rights, Policy & Enforcement Directorate",Trafalgar Cleaning,H57720240328iljorpebf,-397.79,Not Applicable
Department for Science Innovation & Technology,Intellectual Property Office,Department for Business Energy and Industrial Strategy,Intellectual Property Office,25/03/2024,Office Stationery,"Rights, Policy & Enforcement Directorate",Buy It Direct,H57720240327ctmjxwprv,473.68,Not Applicable
Department for Science Innovation & Technology,Intellectual Property Office,Department for Business Energy and Industrial Strategy,Intellectual Property Office,25/03/2024,Minor Works-Goods,"Rights, Policy & Enforcement Directorate",Locks And Fittings Lim,H57720240327hwumppvcj,424.8,Not Applicable
Department for Science Innovation & Technology,Intellectual Property Office,Department for Business Energy and Industrial Strategy,Intellectual Property Office,25/03/2024,Office Stationery,"Rights, Policy & Enforcement Directorate",Buy It Direct,H57720240327sjppoqbgl,4.69,Not Applicable
Department for Science Innovation & Technology,Intellectual Property Office,Department for Business Energy and Industrial Strategy,Intellectual Property Office,25/03/2024,Network and infrastructure H/W,"Rights, Policy & Enforcement Directorate",Asda Superstore 4928,H57720240327yttlbllii,45.59,Not Applicable
Department for Science Innovation & Technology,Intellectual Property Office,Department for Business Energy and Industrial Strategy,Intellectual Property Office,21/03/2024,Office Stationery,"Rights, Policy & Enforcement Directorate",Amazon* 205-1395023-41,H57720240326ckiqxostf,-42.45,Not Applicable
Department for Science Innovation & Technology,Intellectual Property Office,Department for Business Energy and Industrial Strategy,Intellectual Property Office,22/03/2024,Minor Works-Goods,"Rights, Policy & Enforcement Directorate",Gas And Water Pipelines,H57720240326ftppamigk,-256.32,Not Applicable
Department for Science Innovation & Technology,Intellectual Property Office,Department for Business Energy and Industrial Strategy,Intellectual Property Office,20/03/2024,Career Development Services,"Rights, Policy & Enforcement Directorate",Home Bargains,H57720240326gcwumijcy,25.05,Not Applicable
Department for Science Innovation & Technology,Intellectual Property Office,Department for Business Energy and Industrial Strategy,Intellectual Property Office,24/03/2024,Office Stationery,"Rights, Policy & Enforcement Directorate",Amazon.Co.Uk,H57720240326nsccbxpld,27,Not Applicable
Department for Science Innovation & Technology,Intellectual Property Office,Department for Business Energy and Industrial Strategy,Intellectual Property Office,20/03/2024,Career Development Services,Strategy Directorate,Paypal,H57720240326pttmmhhvt,169.34,Not Applicable
Department for Science Innovation & Technology,Intellectual Property Office,Department for Business Energy and Industrial Strategy,Intellectual Property Office,22/03/2024,Overseas Patent Specifications,PDTM Directorate,Onepetro,H57720240326ujzmuwryh,18.73,Not Applicable
Department for Science Innovation & Technology,Intellectual Property Office,Department for Business Energy and Industrial Strategy,Intellectual Property Office,21/03/2024,Office Stationery,"Rights, Policy & Enforcement Directorate",Amazon* 205-1395023-41,H57720240326wggmsxoco,-35.59,Not Applicable
Department for Science Innovation & Technology,Intellectual Property Office,Department for Business Energy and Industrial Strategy,Intellectual Property Office,21/03/2024,Other,"Rights, Policy & Enforcement Directorate",Executivegrapevine,H57720240323fbvxyokfr,27.99,Not Applicable
Department for Science Innovation & Technology,Intellectual Property Office,Department for Business Energy and Industrial Strategy,Intellectual Property Office,10/03/2024,Legal Consultancy,DDaT Directorate,Ipo,H57720240323ffnwhdprr,-50,Not Applicable
Department for Science Innovation & Technology,Intellectual Property Office,Department for Business Energy and Industrial Strategy,Intellectual Property Office,21/03/2024,Career Development Services,Strategy Directorate,Addison Lee Extra,H57720240323idkcjblhe,18.64,Not Applicable
Department for Science Innovation & Technology,Intellectual Property Office,Department for Business Energy and Industrial Strategy,Intellectual Property Office,21/03/2024,Office Stationery,"Rights, Policy & Enforcement Directorate",Smallrig Technology Hk,H57720240323iuarnuchb,18.18,Not Applicable
Department for Science Innovation & Technology,Intellectual Property Office,Department for Business Energy and Industrial Strategy,Intellectual Property Office,21/03/2024,Career Development Services,Strategy Directorate,Addison Lee Extra,H57720240323kxasbhyqp,18.64,Not Applicable
Department for Science Innovation & Technology,Intellectual Property Office,Department for Business Energy and Industrial Strategy,Intellectual Property Office,10/03/2024,Legal Consultancy,DDaT Directorate,Ipo,H57720240323mjlbhswls,-170,Not Applicable
Department for Science Innovation & Technology,Intellectual Property Office,Department for Business Energy and Industrial Strategy,Intellectual Property Office,10/03/2024,Legal Consultancy,DDaT Directorate,Ipo,H57720240323ngjfoxyqs,-170,Not Applicable
Department for Science Innovation & Technology,Intellectual Property Office,Department for Business Energy and Industrial Strategy,Intellectual Property Office,21/03/2024,Career Development Services,Strategy Directorate,Addison Lee Extra,H57720240323orcuwqyqn,7.6,Not Applicable
Department for Science Innovation & Technology,Intellectual Property Office,Department for Business Energy and Industrial Strategy,Intellectual Property Office,10/03/2024,Legal Consultancy,DDaT Directorate,Ipo,H57720240323rscntcoik,-50,Not Applicable
Department for Science Innovation & Technology,Intellectual Property Office,Department for Business Energy and Industrial Strategy,Intellectual Property Office,21/03/2024,Career Development Services,Strategy Directorate,Addison Lee Extra,H57720240323rvbkbwxuv,4.84,Not Applicable
Department for Science Innovation & Technology,Intellectual Property Office,Department for Business Energy and Industrial Strategy,Intellectual Property Office,21/03/2024,Office Stationery,"Rights, Policy & Enforcement Directorate",Toolstation Uk,H57720240323seirvuvrt,19.8,Not Applicable
Department for Science Innovation & Technology,Intellectual Property Office,Department for Business Energy and Industrial Strategy,Intellectual Property Office,21/03/2024,Career Development Services,Strategy Directorate,Addison Lee Extra,H57720240323tjuahhknz,19.32,Not Applicable
Department for Science Innovation & Technology,Intellectual Property Office,Department for Business Energy and Industrial Strategy,Intellectual Property Office,21/03/2024,Career Development Services,Strategy Directorate,Futurelearn.Com,H57720240323tslhnjtek,275,Not Applicable
Department for Science Innovation & Technology,Intellectual Property Office,Department for Business Energy and Industrial Strategy,Intellectual Property Office,21/03/2024,Career Development Services,Strategy Directorate,Addison Lee Extra,H57720240323uhjcshmxg,4.84,Not Applicable
Department for Science Innovation & Technology,Intellectual Property Office,Department for Business Energy and Industrial Strategy,Intellectual Property Office,09/03/2024,Legal Consultancy,DDaT Directorate,Ipo,H57720240323ujebbkuxs,-50,Not Applicable
Department for Science Innovation & Technology,Intellectual Property Office,Department for Business Energy and Industrial Strategy,Intellectual Property Office,09/03/2024,Legal Consultancy,DDaT Directorate,Ipo,H57720240323uzyeezpbs,-170,Not Applicable
Department for Science Innovation & Technology,Intellectual Property Office,Department for Business Energy and Industrial Strategy,Intellectual Property Office,21/03/2024,Career Development Services,Strategy Directorate,Addison Lee Extra,H57720240323vtotbujjo,26.92,Not Applicable
Department for Science Innovation & Technology,Intellectual Property Office,Department for Business Energy and Industrial Strategy,Intellectual Property Office,21/03/2024,Career Development Services,Strategy Directorate,Addison Lee Extra,H57720240323zkkuuengo,25.54,Not Applicable
Department for Science Innovation & Technology,Intellectual Property Office,Department for Business Energy and Industrial Strategy,Intellectual Property Office,20/03/2024,Office Stationery,"Rights, Policy & Enforcement Directorate",Viking,H57720240322cdtkcbews,134.72,Not Applicable
Department for Science Innovation & Technology,Intellectual Property Office,Department for Business Energy and Industrial Strategy,Intellectual Property Office,20/03/2024,Education Campaign,PDTM Directorate,Asda Superstore 4928,H57720240322flkygoerv,20.95,Not Applicable
Department for Science Innovation & Technology,Intellectual Property Office,Department for Business Energy and Industrial Strategy,Intellectual Property Office,20/03/2024,Books,DDaT Directorate,Amazon* 202-4802677-15,H57720240322hfypmnmqz,48.84,Not Applicable
Department for Science Innovation & Technology,Intellectual Property Office,Department for Business Energy and Industrial Strategy,Intellectual Property Office,20/03/2024,Office Stationery,"Rights, Policy & Enforcement Directorate",Www.Plexdisplay.Com,H57720240322jflspcgql,59.23,Not Applicable
Department for Science Innovation & Technology,Intellectual Property Office,Department for Business Energy and Industrial Strategy,Intellectual Property Office,20/03/2024,Career Development Services,Strategy Directorate,Www.Addisonlee.Com,H57720240322pyljpnkll,-28.8,Not Applicable
Department for Science Innovation & Technology,Intellectual Property Office,Department for Business Energy and Industrial Strategy,Intellectual Property Office,20/03/2024,Career Development Services,Strategy Directorate,Addison Lee Extra,H57720240322whwwpsamx,6.96,Not Applicable
Department for Science Innovation & Technology,Intellectual Property Office,Department for Business Energy and Industrial Strategy,Intellectual Property Office,19/03/2024,Office Stationery,"Rights, Policy & Enforcement Directorate",Srs Sales & Service Lt,H57720240321ccovxxlnr,756,Not Applicable
Department for Science Innovation & Technology,Intellectual Property Office,Department for Business Energy and Industrial Strategy,Intellectual Property Office,19/03/2024,Office Stationery,"Rights, Policy & Enforcement Directorate",Trafalgar Cleaning,H57720240321gzhtrcpez,397.79,Not Applicable
Department for Science Innovation & Technology,Intellectual Property Office,Department for Business Energy and Industrial Strategy,Intellectual Property Office,18/03/2024,Overseas Patent Specifications,PDTM Directorate,Wiley,H57720240321hircpvcpc,39.66,Not Applicable
Department for Science Innovation & Technology,Intellectual Property Office,Department for Business Energy and Industrial Strategy,Intellectual Property Office,19/03/2024,Office Stationery,"Rights, Policy & Enforcement Directorate",Sp Equip2clean,H57720240321irwddmjwq,503.9,Not Applicable
Department for Science Innovation & Technology,Intellectual Property Office,Department for Business Energy and Industrial Strategy,Intellectual Property Office,19/03/2024,Minor Works-Goods,"Rights, Policy & Enforcement Directorate",Plastics Hub Ltd,H57720240321itqlwkrnp,95.5,Not Applicable
Department for Science Innovation & Technology,Intellectual Property Office,Department for Business Energy and Industrial Strategy,Intellectual Property Office,18/03/2024,Office Stationery,"Rights, Policy & Enforcement Directorate",Amazon* 203-8446529-34,H57720240321jdkhmokyf,25.69,Not Applicable
Department for Science Innovation & Technology,Intellectual Property Office,Department for Business Energy and Industrial Strategy,Intellectual Property Office,19/03/2024,Office Stationery,"Rights, Policy & Enforcement Directorate",Srs Sales & Service Lt,H57720240321vnbvtwton,300,Not Applicable
Department for Science Innovation & Technology,Intellectual Property Office,Department for Business Energy and Industrial Strategy,Intellectual Property Office,19/03/2024,Other,"Rights, Policy & Enforcement Directorate",British Red Cross Soci,H57720240321vniqwlydp,198,Not Applicable
Department for Science Innovation & Technology,Intellectual Property Office,Department for Business Energy and Industrial Strategy,Intellectual Property Office,19/03/2024,Overseas Patent Specifications,PDTM Directorate,Aippscitation,H57720240321wwignufep,32.38,Not Applicable
Department for Science Innovation & Technology,Intellectual Property Office,Department for Business Energy and Industrial Strategy,Intellectual Property Office,18/03/2024,Overseas Patent Specifications,PDTM Directorate,Wiley,H57720240321xtgxecemd,39.66,Not Applicable
Department for Science Innovation & Technology,Intellectual Property Office,Department for Business Energy and Industrial Strategy,Intellectual Property Office,19/03/2024,Career Development Services,"Rights, Policy & Enforcement Directorate",Inst Env Mgt & Assess,H57720240321zegcdxlqs,197,Not Applicable
Department for Science Innovation & Technology,Intellectual Property Office,Department for Business Energy and Industrial Strategy,Intellectual Property Office,18/03/2024,Career Development Services,"Rights, Policy & Enforcement Directorate",Lidl Gb,H57720240320jgxplnjde,10.82,Not Applicable
Department for Science Innovation & Technology,Intellectual Property Office,Department for Business Energy and Industrial Strategy,Intellectual Property Office,18/03/2024,Office Stationery,"Rights, Policy & Enforcement Directorate",Gas And Water Pipelines,H57720240320kneotwrxu,296.82,Not Applicable
Department for Science Innovation & Technology,Intellectual Property Office,Department for Business Energy and Industrial Strategy,Intellectual Property Office,18/03/2024,Overseas Patent Specifications,PDTM Directorate,Digital-Library.Th,H57720240320lvtskjccg,12.5,Not Applicable
Department for Science Innovation & Technology,Intellectual Property Office,Department for Business Energy and Industrial Strategy,Intellectual Property Office,18/03/2024,Office Stationery,"Rights, Policy & Enforcement Directorate",Www.Screwfix.Com,H57720240320nvrlugasx,8.97,Not Applicable
Department for Science Innovation & Technology,Intellectual Property Office,Department for Business Energy and Industrial Strategy,Intellectual Property Office,18/03/2024,Overseas Patent Specifications,PDTM Directorate,The Optical Society-Osa,H57720240320qvjrviotv,28.34,Not Applicable
Department for Science Innovation & Technology,Intellectual Property Office,Department for Business Energy and Industrial Strategy,Intellectual Property Office,18/03/2024,Minor Works-Goods,"Rights, Policy & Enforcement Directorate",Gas And Water Pipelines,H57720240320uniljtvwf,110.42,Not Applicable
Department for Science Innovation & Technology,Intellectual Property Office,Department for Business Energy and Industrial Strategy,Intellectual Property Office,18/03/2024,Other,"Rights, Policy & Enforcement Directorate",Specsaversevougb-,H57720240320vmqqzzzwu,398,Not Applicable
Department for Science Innovation & Technology,Intellectual Property Office,Department for Business Energy and Industrial Strategy,Intellectual Property Office,15/03/2024,Career Development Services,Strategy Directorate,Sainsburys S/mkts,H57720240319dwuqodhsr,14.2,Not Applicable
Department for Science Innovation & Technology,Intellectual Property Office,Department for Business Energy and Industrial Strategy,Intellectual Property Office,15/03/2024,Office Stationery,"Rights, Policy & Enforcement Directorate",Amazon* 206-5852603-63,H57720240319emkengjoa,124.95,Not Applicable
Department for Science Innovation & Technology,Intellectual Property Office,Department for Business Energy and Industrial Strategy,Intellectual Property Office,15/03/2024,Network and infrastructure H/W,DDaT Directorate,Amazon* 026-9941857-88,H57720240319kodqlyhcj,3881.31,Not Applicable
Department for Science Innovation & Technology,Intellectual Property Office,Department for Business Energy and Industrial Strategy,Intellectual Property Office,15/03/2024,Office Stationery,"Rights, Policy & Enforcement Directorate",Amazon* 203-6910378-39,H57720240319ngalhpppr,19.83,Not Applicable
Department for Science Innovation & Technology,Intellectual Property Office,Department for Business Energy and Industrial Strategy,Intellectual Property Office,13/03/2024,Minor Works-Goods,"Rights, Policy & Enforcement Directorate",Amazon* 026-4852570-66,H57720240319qnytrmool,163.16,Not Applicable
Department for Science Innovation & Technology,Intellectual Property Office,Department for Business Energy and Industrial Strategy,Intellectual Property Office,17/03/2024,Career Development Services,Finance Directorate,Association Of Chartered,H57720240319rihtgeqhy,204,Not Applicable
Department for Science Innovation & Technology,Intellectual Property Office,Department for Business Energy and Industrial Strategy,Intellectual Property Office,14/03/2024,Office Stationery,"Rights, Policy & Enforcement Directorate",Amazon* 205-8877917-08,H57720240319syylsgdxi,104,Not Applicable
Department for Science Innovation & Technology,Intellectual Property Office,Department for Business Energy and Industrial Strategy,Intellectual Property Office,16/03/2024,Funding of Enforcement,"Rights, Policy & Enforcement Directorate",Facebk *mzz2xy7be2,H57720240319uhlvglbdv,700,Not Applicable
Department for Science Innovation & Technology,Intellectual Property Office,Department for Business Energy and Industrial Strategy,Intellectual Property Office,15/03/2024,IP Attaches,Business & International Policy Directorate,Doha Insurance Company,H57720240319undrsckad,11.11,Not Applicable
Department for Science Innovation & Technology,Intellectual Property Office,Department for Business Energy and Industrial Strategy,Intellectual Property Office,15/03/2024,Office Stationery,"Rights, Policy & Enforcement Directorate",Amazon.Co.Uk,H57720240316dlaelnggi,-29.99,Not Applicable
Department for Science Innovation & Technology,Intellectual Property Office,Department for Business Energy and Industrial Strategy,Intellectual Property Office,14/03/2024,Funding of Enforcement,"Rights, Policy & Enforcement Directorate",Facebk *z53yezpbe2,H57720240316irliydttm,700,Not Applicable
Department for Science Innovation & Technology,Intellectual Property Office,Department for Business Energy and Industrial Strategy,Intellectual Property Office,14/03/2024,Perpetual Licences,DDaT Directorate,Wwwsightandsound.Co.Uk,H57720240316izetgkvxx,600,Not Applicable
,,Department for Business Energy and Industrial Strategy,Intellectual Property Office,08/03/2024,Overseas Patent Specifications,PDTM Directorate,Springer Customer Serv,H57720240316snklnpyup,29.95,Not Applicable
,,Department for Business Energy and Industrial Strategy,Intellectual Property Office,14/03/2024,Career Development Services,Strategy Directorate,Westminster Insight,H57720240316tljvjjlbp,355.32,Not Applicable
,,Department for Business Energy and Industrial Strategy,Intellectual Property Office,14/03/2024,Career Development Services,Strategy Directorate,Westminster Insight,H57720240316tqgcnkiec,355.32,Not Applicable
,,Department for Business Energy and Industrial Strategy,Intellectual Property Office,14/03/2024,Minor Works-Goods,"Rights, Policy & Enforcement Directorate",The Mesh Company,H57720240316ytufzomrx,34.99,Not Applicable
,,Department for Business Energy and Industrial Strategy,Intellectual Property Office,14/03/2024,Perpetual Licences,DDaT Directorate,Fs *dolphinaccess,H57720240316ywmnkzpks,2784,Not Applicable
,,Department for Business Energy and Industrial Strategy,Intellectual Property Office,14/03/2024,Office Stationery,"Rights, Policy & Enforcement Directorate",Amazon* 204-6738607-16,H57720240316yzvxrlckd,21.94,Not Applicable
,,Department for Business Energy and Industrial Strategy,Intellectual Property Office,13/03/2024,Career Development Services,Strategy Directorate,Westminster Insight,H57720240315btoquvyoq,355.32,Not Applicable
,,Department for Business Energy and Industrial Strategy,Intellectual Property Office,13/03/2024,Entertainment,"Rights, Policy & Enforcement Directorate",Tesco-Stores 6459,H57720240315bzqdjmknr,7.7,Not Applicable
,,Department for Business Energy and Industrial Strategy,Intellectual Property Office,12/03/2024,Perpetual Licences,DDaT Directorate,Dri*,H57720240315cefqksscl,258,Not Applicable
,,Department for Business Energy and Industrial Strategy,Intellectual Property Office,13/03/2024,Entertainment,PDTM Directorate,Sainsburys S/mkts,H57720240315ewokruyut,3.75,Not Applicable
,,Department for Business Energy and Industrial Strategy,Intellectual Property Office,14/03/2024,Office Stationery,"Rights, Policy & Enforcement Directorate",Amznmktplace,H57720240315gazlkxsbz,23.94,Not Applicable
,,Department for Business Energy and Industrial Strategy,Intellectual Property Office,13/03/2024,Career Development Services,"Rights, Policy & Enforcement Directorate",Tesco Stores 2931,H57720240315haippfpjr,43.16,Not Applicable
,,Department for Business Energy and Industrial Strategy,Intellectual Property Office,13/03/2024,Career Development Services,Strategy Directorate,Westminster Insight,H57720240315kerkahhmr,355.32,Not Applicable
,,Department for Business Energy and Industrial Strategy,Intellectual Property Office,13/03/2024,Overseas Patent Specifications,PDTM Directorate,Association For Computing,H57720240315neqrcduoy,12.12,Not Applicable
,,Department for Business Energy and Industrial Strategy,Intellectual Property Office,09/03/2024,Legal Consultancy,DDaT Directorate,Ipo,H57720240315qdiisncez,-30,Not Applicable
,,Department for Business Energy and Industrial Strategy,Intellectual Property Office,11/03/2024,Career Development Services,"Rights, Policy & Enforcement Directorate",Amazon* 205-2498380-00,H57720240314drqlqbppe,71.98,Not Applicable
,,Department for Business Energy and Industrial Strategy,Intellectual Property Office,11/03/2024,Career Development Services,"Rights, Policy & Enforcement Directorate",Amazon* 205-4976631-53,H57720240314ecsvpdokz,7.7,Not Applicable
,,Department for Business Energy and Industrial Strategy,Intellectual Property Office,12/03/2024,Entertainment,"Rights, Policy & Enforcement Directorate",Tesco-Stores 6225,H57720240314ifemeuqrp,35.7,Not Applicable
,,Department for Business Energy and Industrial Strategy,Intellectual Property Office,12/03/2024,Career Development Services,"Rights, Policy & Enforcement Directorate",Asda Superstore 4928,H57720240314jqhibnqkh,22.29,Not Applicable
,,Department for Business Energy and Industrial Strategy,Intellectual Property Office,12/03/2024,Minor Works-Goods,"Rights, Policy & Enforcement Directorate",Amazon* 026-4369150-45,H57720240314lsjoltkyu,158.23,Not Applicable
,,Department for Business Energy and Industrial Strategy,Intellectual Property Office,12/03/2024,Career Development Services,"Rights, Policy & Enforcement Directorate",Amznmktplace,H57720240314nkxtieozt,-5.38,Not Applicable
,,Department for Business Energy and Industrial Strategy,Intellectual Property Office,12/03/2024,Office Stationery,"Rights, Policy & Enforcement Directorate",Www.Screwfix.Com,H57720240314ofphpgvzr,105.81,Not Applicable
,,Department for Business Energy and Industrial Strategy,Intellectual Property Office,12/03/2024,Overseas Patent Specifications,PDTM Directorate,Wiley,H57720240314qucylntkr,47.46,Not Applicable
,,Department for Business Energy and Industrial Strategy,Intellectual Property Office,12/03/2024,Books,Strategy Directorate,Amazon.Co.Uk,H57720240314rviguyyym,29.34,Not Applicable
,,Department for Business Energy and Industrial Strategy,Intellectual Property Office,12/03/2024,Perpetual Licences,DDaT Directorate,Lucid Software Inc.,H57720240314syenynucg,115.2,Not Applicable
,,Department for Business Energy and Industrial Strategy,Intellectual Property Office,12/03/2024,Funding of Enforcement,"Rights, Policy & Enforcement Directorate",Facebk *rvd9mzfbe2,H57720240314vbhorthmg,400,Not Applicable
,,Department for Business Energy and Industrial Strategy,Intellectual Property Office,12/03/2024,Career Development Services,"Rights, Policy & Enforcement Directorate",Amznmktplace,H57720240314ycoxytemb,53.34,Not Applicable
,,Department for Business Energy and Industrial Strategy,Intellectual Property Office,10/03/2024,Legal Consultancy,DDaT Directorate,Ipo,H57720240313akzmrrgjo,50,Not Applicable
,,Department for Business Energy and Industrial Strategy,Intellectual Property Office,11/03/2024,Office Stationery,"Rights, Policy & Enforcement Directorate",Ikea Ltd Shop Online,H57720240313fmaguhxbs,70,Not Applicable
,,Department for Business Energy and Industrial Strategy,Intellectual Property Office,11/03/2024,Office Stationery,"Rights, Policy & Enforcement Directorate",Dunelm Softfurnishings,H57720240313gsonoeqxe,38.95,Not Applicable
,,Department for Business Energy and Industrial Strategy,Intellectual Property Office,11/03/2024,Career Development Services,"Rights, Policy & Enforcement Directorate",Amazon* 205-3055375-93,H57720240313gubuwwrsq,7.7,Not Applicable
,,Department for Business Energy and Industrial Strategy,Intellectual Property Office,11/03/2024,Career Development Services,"Rights, Policy & Enforcement Directorate",Amazon* 205-0647772-72,H57720240313lhnbvbdwa,9.52,Not Applicable
,,Department for Business Energy and Industrial Strategy,Intellectual Property Office,10/03/2024,Legal Consultancy,DDaT Directorate,Ipo,H57720240313lubfbdwow,170,Not Applicable
,,Department for Business Energy and Industrial Strategy,Intellectual Property Office,11/03/2024,Career Development Services,"Rights, Policy & Enforcement Directorate",Amznmktplace,H57720240313nhgxtbndn,13.98,Not Applicable
,,Department for Business Energy and Industrial Strategy,Intellectual Property Office,11/03/2024,Funding of Enforcement,"Rights, Policy & Enforcement Directorate",Facebk *zktmkzfbe2,H57720240313pzghleurs,300,Not Applicable
,,Department for Business Energy and Industrial Strategy,Intellectual Property Office,10/03/2024,Legal Consultancy,DDaT Directorate,Ipo,H57720240313sgdrjinki,50,Not Applicable
,,Department for Business Energy and Industrial Strategy,Intellectual Property Office,10/03/2024,Legal Consultancy,DDaT Directorate,Ipo,H57720240313slfvyxjju,30,Not Applicable
,,Department for Business Energy and Industrial Strategy,Intellectual Property Office,11/03/2024,Career Development Services,"Rights, Policy & Enforcement Directorate",Amznmktplace,H57720240313smxpsvvqq,5.38,Not Applicable
,,Department for Business Energy and Industrial Strategy,Intellectual Property Office,10/03/2024,Legal Consultancy,DDaT Directorate,Ipo,H57720240313uvavydhaj,30,Not Applicable
,,Department for Business Energy and Industrial Strategy,Intellectual Property Office,11/03/2024,Office Stationery,"Rights, Policy & Enforcement Directorate",Www.Thebarcodewarehous,H57720240313viqgrzsbx,780,Not Applicable
,,Department for Business Energy and Industrial Strategy,Intellectual Property Office,10/03/2024,Legal Consultancy,DDaT Directorate,Ipo,H57720240313xboewktrt,170,Not Applicable
,,Department for Business Energy and Industrial Strategy,Intellectual Property Office,11/03/2024,Office Stationery,"Rights, Policy & Enforcement Directorate",Www.Screwfix.Com,H57720240313yrlubcdlv,24.78,Not Applicable
,,Department for Business Energy and Industrial Strategy,Intellectual Property Office,09/03/2024,Legal Consultancy,DDaT Directorate,Ipo,H57720240312bppucckvq,170,Not Applicable
,,Department for Business Energy and Industrial Strategy,Intellectual Property Office,09/03/2024,Career Development Services,"Rights, Policy & Enforcement Directorate",Tesco-Stores 6225,H57720240312dgekfkyrg,32.2,Not Applicable
,,Department for Business Energy and Industrial Strategy,Intellectual Property Office,10/03/2024,Office Stationery,"Rights, Policy & Enforcement Directorate",Amazon.Co.Uk,H57720240312fgwlupyjw,14.99,Not Applicable
,,Department for Business Energy and Industrial Strategy,Intellectual Property Office,10/03/2024,Office Stationery,"Rights, Policy & Enforcement Directorate",Amazon.Co.Uk,H57720240312mkbrgegyo,29.99,Not Applicable
,,Department for Business Energy and Industrial Strategy,Intellectual Property Office,09/03/2024,Legal Consultancy,DDaT Directorate,Ipo,H57720240312mlgkcehpr,30,Not Applicable
,,Department for Business Energy and Industrial Strategy,Intellectual Property Office,10/03/2024,Funding of Enforcement,"Rights, Policy & Enforcement Directorate",Facebk *nz2jxyxae2,H57720240312mlwkvmawn,200,Not Applicable
,,Department for Business Energy and Industrial Strategy,Intellectual Property Office,08/03/2024,Career Development Services,DDaT Directorate,Paypal,H57720240312mvkfrpuiv,474,Not Applicable
,,Department for Business Energy and Industrial Strategy,Intellectual Property Office,08/03/2024,Office Stationery,"Rights, Policy & Enforcement Directorate",Sp Equip2clean,H57720240312obrtjansu,188.95,Not Applicable
,,Department for Business Energy and Industrial Strategy,Intellectual Property Office,10/03/2024,Career Development Services,Strategy Directorate,Datacamp Inc.,H57720240312wkivngscd,482.65,Not Applicable
,,Department for Business Energy and Industrial Strategy,Intellectual Property Office,09/03/2024,Legal Consultancy,DDaT Directorate,Ipo,H57720240312xoifmymll,50,Not Applicable
,,Department for Business Energy and Industrial Strategy,Intellectual Property Office,07/03/2024,Career Development Services,"Rights, Policy & Enforcement Directorate",Amazon.Co.Uk,H57720240309gdwirwrwv,4.99,Not Applicable
,,Department for Business Energy and Industrial Strategy,Intellectual Property Office,07/03/2024,Office Stationery,"Rights, Policy & Enforcement Directorate",Amazon* 026-8866956-80,H57720240309hqgellhpl,39.99,Not Applicable
,,Department for Business Energy and Industrial Strategy,Intellectual Property Office,07/03/2024,Office Stationery,"Rights, Policy & Enforcement Directorate",Amazon* 026-9450577-05,H57720240309ijplpnoxe,148.44,Not Applicable
,,Department for Business Energy and Industrial Strategy,Intellectual Property Office,07/03/2024,Career Development Services,"Rights, Policy & Enforcement Directorate",Iwfm,H57720240309molmwqwqg,219,Not Applicable
,,Department for Business Energy and Industrial Strategy,Intellectual Property Office,07/03/2024,Network and infrastructure H/W,DDaT Directorate,Amazon* 203-5252904-77,H57720240309nlrsvxtgq,22.94,Not Applicable
,,Department for Business Energy and Industrial Strategy,Intellectual Property Office,07/03/2024,Career Development Services,DDaT Directorate,Eb *designing Good Ser,H57720240309ohrleyxfp,474,Not Applicable
,,Department for Business Energy and Industrial Strategy,Intellectual Property Office,07/03/2024,Career Development Services,Finance Directorate,Paypal,H57720240309rekthjkde,41,Not Applicable
,,Department for Business Energy and Industrial Strategy,Intellectual Property Office,07/03/2024,Office Stationery,"Rights, Policy & Enforcement Directorate",Independent Electrical,H57720240309uqcjihqpc,26.47,Not Applicable
,,Department for Business Energy and Industrial Strategy,Intellectual Property Office,07/03/2024,Career Development Services,"Rights, Policy & Enforcement Directorate",Amazon.Co.Uk,H57720240309xpykdxszt,-4.99,Not Applicable
,,Department for Business Energy and Industrial Strategy,Intellectual Property Office,06/03/2024,Seminars and Confereces,PDTM Directorate,The Market Research,H57720240308awkaejpyh,624,Not Applicable
,,Department for Business Energy and Industrial Strategy,Intellectual Property Office,06/03/2024,Career Development Services,Strategy Directorate,Www.Addisonlee.Com,H57720240308dgcvoldjf,48,Not Applicable
,,Department for Business Energy and Industrial Strategy,Intellectual Property Office,06/03/2024,Career Development Services,Strategy Directorate,Www.Addisonlee.Com,H57720240308drasxtnhl,48,Not Applicable
,,Department for Business Energy and Industrial Strategy,Intellectual Property Office,06/03/2024,Career Development Services,Strategy Directorate,Www.Addisonlee.Com,H57720240308drbnvsxth,48,Not Applicable
,,Department for Business Energy and Industrial Strategy,Intellectual Property Office,06/03/2024,Career Development Services,Strategy Directorate,Www.Addisonlee.Com,H57720240308fijdljypj,48,Not Applicable
,,Department for Business Energy and Industrial Strategy,Intellectual Property Office,06/03/2024,Seminars and Confereces,PDTM Directorate,Iqpc Limited,H57720240308gttbosdfk,237.6,Not Applicable
,,Department for Business Energy and Industrial Strategy,Intellectual Property Office,05/03/2024,Perpetual Licences,DDaT Directorate,Digicert,H57720240308jdmbuuwit,235.32,Not Applicable
,,Department for Business Energy and Industrial Strategy,Intellectual Property Office,05/03/2024,Overseas Patent Specifications,PDTM Directorate,Wiley,H57720240308khvfhpvyo,48.04,Not Applicable
,,Department for Business Energy and Industrial Strategy,Intellectual Property Office,05/03/2024,Overseas Patent Specifications,PDTM Directorate,Wiley,H57720240308ntotsllvd,39.9,Not Applicable
,,Department for Business Energy and Industrial Strategy,Intellectual Property Office,06/03/2024,Career Development Services,Strategy Directorate,Www.Addisonlee.Com,H57720240308ondbhxmpx,48,Not Applicable
,,Department for Business Energy and Industrial Strategy,Intellectual Property Office,06/03/2024,Office Stationery,"Rights, Policy & Enforcement Directorate",Independent Electrical,H57720240308pkpryjbbw,564,Not Applicable
,,Department for Business Energy and Industrial Strategy,Intellectual Property Office,06/03/2024,Seminars and Confereces,PDTM Directorate,Inst. Of Customer Servic,H57720240308qkxcqssgq,42,Not Applicable
,,Department for Business Energy and Industrial Strategy,Intellectual Property Office,06/03/2024,Career Development Services,PDTM Directorate,Iqpc Limited,H57720240308rjkysvxak,118.8,Not Applicable
,,Department for Business Energy and Industrial Strategy,Intellectual Property Office,06/03/2024,Career Development Services,Strategy Directorate,Www.Addisonlee.Com,H57720240308sbfhsouop,48,Not Applicable
,,Department for Business Energy and Industrial Strategy,Intellectual Property Office,06/03/2024,Career Development Services,Strategy Directorate,Www.Addisonlee.Com,H57720240308snthkgqux,48,Not Applicable
,,Department for Business Energy and Industrial Strategy,Intellectual Property Office,06/03/2024,Career Development Services,Strategy Directorate,Www.Addisonlee.Com,H57720240308sracskibk,48,Not Applicable
,,Department for Business Energy and Industrial Strategy,Intellectual Property Office,06/03/2024,Career Development Services,Strategy Directorate,Www.Addisonlee.Com,H57720240308ubvymglri,48,Not Applicable
,,Department for Business Energy and Industrial Strategy,Intellectual Property Office,06/03/2024,Career Development Services,Strategy Directorate,Www.Addisonlee.Com,H57720240308vbjqktqtr,48,Not Applicable
,,Department for Business Energy and Industrial Strategy,Intellectual Property Office,06/03/2024,Career Development Services,Strategy Directorate,Www.Addisonlee.Com,H57720240308wyorwnjmx,48,Not Applicable
,,Department for Business Energy and Industrial Strategy,Intellectual Property Office,06/03/2024,Career Development Services,Strategy Directorate,Www.Addisonlee.Com,H57720240308xlpexoubq,48,Not Applicable
,,Department for Business Energy and Industrial Strategy,Intellectual Property Office,06/03/2024,Career Development Services,Strategy Directorate,Www.Addisonlee.Com,H57720240308ybdogzxpt,48,Not Applicable
,,Department for Business Energy and Industrial Strategy,Intellectual Property Office,05/03/2024,Career Development Services,Finance Directorate,Kaplan Financial Ltd,H57720240307ahybivmxc,956,Not Applicable
,,Department for Business Energy and Industrial Strategy,Intellectual Property Office,05/03/2024,IP Masterclass,PDTM Directorate,Office For National St,H57720240307fiqgkftor,15.85,Not Applicable
,,Department for Business Energy and Industrial Strategy,Intellectual Property Office,05/03/2024,IP Masterclass,PDTM Directorate,Asda Superstore 4928,H57720240307gwqlcyhqd,45.15,Not Applicable
,,Department for Business Energy and Industrial Strategy,Intellectual Property Office,05/03/2024,Career Development Services,"Rights, Policy & Enforcement Directorate",Asda Superstore 4928,H57720240307hlwbljncv,4.85,Not Applicable
,,Department for Business Energy and Industrial Strategy,Intellectual Property Office,05/03/2024,Minor Works-Goods,"Rights, Policy & Enforcement Directorate",7033 Sig Distribution,H57720240307jjgmoekfg,656.2,Not Applicable
,,Department for Business Energy and Industrial Strategy,Intellectual Property Office,05/03/2024,Career Development Services,"Rights, Policy & Enforcement Directorate",Asda Superstore 4928,H57720240307qgvtzpgmy,15.84,Not Applicable
,,Department for Business Energy and Industrial Strategy,Intellectual Property Office,05/03/2024,Overseas Patent Specifications,PDTM Directorate,Elsevier Limited,H57720240307thypkxvry,39.04,Not Applicable
,,Department for Business Energy and Industrial Strategy,Intellectual Property Office,05/03/2024,IP Masterclass,PDTM Directorate,Asda Superstore 4928,H57720240307xtrtxgfkx,31.6,Not Applicable
,,Department for Business Energy and Industrial Strategy,Intellectual Property Office,05/03/2024,Office Stationery,"Rights, Policy & Enforcement Directorate",Www.Screwfix.Com,H57720240307xzjkytosg,80,Not Applicable
,,Department for Business Energy and Industrial Strategy,Intellectual Property Office,01/03/2024,Minor Works-Goods,"Rights, Policy & Enforcement Directorate",Newey & Eyre,H57720240306mzqjfntqe,432.54,Not Applicable
,,Department for Business Energy and Industrial Strategy,Intellectual Property Office,04/03/2024,Other,"Rights, Policy & Enforcement Directorate",British Red Cross Soci,H57720240306tgznkpgwu,306,Not Applicable
,,Department for Business Energy and Industrial Strategy,Intellectual Property Office,04/03/2024,Minor Works-Goods,"Rights, Policy & Enforcement Directorate",Flooring Equipment Dir,H57720240306wxhnkkyoq,168.12,Not Applicable
,,Department for Business Energy and Industrial Strategy,Intellectual Property Office,28/02/2024,Overseas Patent Specifications,PDTM Directorate,Springer Customer Serv,H57720240305btkvfznye,29.95,Not Applicable
,,Department for Business Energy and Industrial Strategy,Intellectual Property Office,01/03/2024,Books,DDaT Directorate,Amazon.Co.Uk,H57720240305fxumoyjpk,18.09,Not Applicable
